Workbook

Sheet Tech (hidden)
A1: LT
A2: EN

Sheet Content
B2: EN | C2: ◄ | D2: Switch to English | F2: ◄ | G2: Rodyti lietuviškai
C4: FISKALINĖS DRAUSMĖS TAISYKLIŲ LAIKYMOSI SKAIČIUOKLĖ | F4: SPREADSHEET OF THE FULFILMENT OF FISCAL DISCIPLINE RULES
C6: 2019-05 BPE-2 | G6: Version 1.1 2019-05
C8: APRAŠYMAS | F8: DESCRIPTION
D10: Fiskalinės sutarties įgyvendinimo konstituciniame įstatyme Nr. XII-1289 (toliau − KĮ) nustatytų fiskalinės drausmės taisyklių skaičiuoklė skirta skaidriai parodyti fiskalinės drausmės taisykles, pagal kurias priimami sprendimai. 1 dalis pateikia skaičiavimams reikalingų duomenų įvestis ir nurodo šių duomenų šaltinius. 2 dalyje nagrinėjamos trys taisyklių grupės: perteklinio valdžios sektoriaus (toliau − VS) taisyklė; VS išlaidų augimą ribojimo taisyklė ir VS priskiriamų biudžetų taisyklės. | G10: Constitutional Law on the Implementation of the Fiscal Treaty Nr. XII-1289 (hereinafter − CL) defines fiscal discipline rules. The aim of this spreadsheet is to show the fiscal discipline rules, which are used for making decisions in a transparent way. Part 1 provides required input data with their appropriate sources. In part 2 three groups of the fiscal rules are validated: general government (hereinafter − GG) surplus rule; GG sector expenditure growth limiting rule and rules for the budgets attributable to GG.
C12: SUVESTINĖ | F12: SUMMARY
D14: 1 lentelė. Fiskalinės drausmės taisyklių laikymosi suvestinė | G14: Table 1. Summary of the fulfilment of the fiscal discipline rules
C16: 1. DUOMENYS | F16: 1 . DATA
D18: 2 lentelė. Makroekonominiai ir ciklo rodikliai | G18: Table 2. Macroeconomic and cyclical indicators
D19: 3 lentelė. VS fiskaliniai rodikliai | G19: Table 3. GG fiscal indicators
D20: 4 lentelė. Savivaldybių biudžetai | G20: Table 4. Budget attributable to local government
C22: 2. FISKALINĖS TAISYKLĖS | F22: 2. FISCAL RULES
D24: 5 lentelė. Perteklinio VS taisyklė | G24: Table 5. Surplus GG rule
D25: 6 lentelė. VS išlaidų augimo ribojimo taisyklė | G25: Table 6. GG expenditure growth limiting rule
D26: 7 lentelė. VS priskiriamų biudžetų taisyklė | G26: Table 7. Rules for the budgets attributable to GG sector
C28: NUORODOS | F28: REFERENCES
C30: KĮ | D30: Lietuvos Respublikos fiskalinės sutarties įgyvendinimo konstitucinis įstatymas | F30: CL | G30: Republic of Lithuania Constitutional Law on the Implementation of the Fiscal Treaty
C31: FDĮ | D31: Lietuvos Respublikos fiskalinės drausmės įstatymas | F31: FDL | G31: Republic of Lithuania Fiscal Discipline Law

Sheet 1. Summary
B1: ↖ atgal į turinį | E1: ↖ back to content
A2: =Kalba -> EN
B3: 1 lentelė. Fiskalinės drausmės taisyklių laikymosi suvestinė 2018 m. | E3: Table 1. Summary of the fulfilment of the fiscal discipline rules in year 2018
B4: Taisyklė | E4: Rule
B5: Institucija, kurios projekcijų pagrindu atliekama analizė | C5: FM | D5: IFI | E5: Institution, projections of which are used for the analysis | F5: MoF | G5: IFI
B6: Perteklinio VS taisyklė | E6: Surplus GG sector rule
B7: Ar patenkinta bent viena perteklinio VS taisyklės sąlygų? | C7: ='5. SurplusGG'!E14 -> Taip | D7: ='5. SurplusGG'!F14 -> Taip | E7: Is at least one condition of the surplus GG rule satisfied? | F7: ='5. SurplusGG'!J14 -> Yes | G7: ='5. SurplusGG'!K14 -> Yes
C8: ='5. SurplusGG'!E15 -> Tenkinama S2 sąlyga | D8: ='5. SurplusGG'!F15 -> Tenkinama S1 sąlyga | F8: ='5. SurplusGG'!J15 -> Condition C2 is valid | G8: ='5. SurplusGG'!K15 -> Condition C1 is valid
B9: Ar t metai yra išskirtinių aplinkybių metai? | C9: Ne | E9: Is year t a year of exceptional circumstances? | F9: =IF(C9="NE","No","Yes") -> No
B10: VS išlaidų augimo ribojimo taisyklė | E10: GG expenditure growth limiting rule
B11: Ar susidaro bent viena aplinkybė, leidžianti netaikyti VS išlaidų augimo ribojimo taisyklės? | C11: ='6. GGexpenditure'!F19 -> Taip | D11: ='6. GGexpenditure'!G19 -> Ne | E11: Is at least one escape clause, which allows switching off GG expenditure growth limiting rule, valid? | F11: ='6. GGexpenditure'!L19 -> Yes | G11: ='6. GGexpenditure'!M19 -> No
C12: ='6. GGexpenditure'!F20 -> Susidaro A2 aplinkybės | D12: ='6. GGexpenditure'!G20 -> Išimčių nėra | F12: ='6. GGexpenditure'!L20 -> Escape clauses E2 emerge | G12: ='6. GGexpenditure'!M20 -> There is no escape clauses
B13: Ar taikoma VS išlaidų augimą ribojimo taisyklė? | C13: =IF(C11="taip","Netaikoma,","Taikoma") -> Netaikoma, | D13: =IF(D11="taip","Netaikoma,","Taikoma") -> Taikoma | E13: Is GG expenditure growth limiting rule applied? | F13: =IF(F11="yes","Not applied","Applied") -> Not applied | G13: =IF(G11="yes","Not applied,","Applied") -> Applied
C14: ='6. GGexpenditure'!F26 -> nes susidarė viena iš KĮ numatytų netaikymo aplinkybių | D14: ='6. GGexpenditure'!G26 -> 1.082 > 1.031 | F14: ='6. GGexpenditure'!L26 -> since one of CL escape clauses emerged | G14: ='6. GGexpenditure'!M26 -> 1.082 > 1.031
B15: Ar galioja VS išlaidų augimo ribojimo taisyklė? | C15: =IF(C11="taip","Netikrinama",'6. GGexpenditure'!F25) -> Netikrinama | D15: =IF(D11="taip","Negalioja",'6. GGexpenditure'!G25) -> Netiesa | E15: Is GG expenditure growth limiting rule valid? | F15: =IF(F11="yes","Not verified",'6. GGexpenditure'!L25) -> Not verified | G15: =IF(G11="yes","Not verified",'6. GGexpenditure'!M25) -> FALSE
B16: VS priskiriamų biudžetų taisyklės | E16: Rules for the budgets attributable to GG sector
B17: Savivaldybių (j), kurių asignavimai didesni nei 0,3 proc. nominalaus BVP, struktūrinio biudžeto (SB) taisyklė | C17: =+'7. GGbudgets'!E8 -> Galioja | D17: =+'7. GGbudgets'!F8 -> Galioja | E17: Structural budget rule for local governments (j) with appropriations exceeding 0,3 % of nominal GDP | F17: =+'7. GGbudgets'!J8 -> Valid | G17: =+'7. GGbudgets'!K8 -> Valid
B18: ='7. GGbudgets'!C14 -> Taisyklė VSDF struktūriniam biudžetui | C18: ='7. GGbudgets'!E14 -> Galioja | D18: ='7. GGbudgets'!F14 -> Galioja | E18: ='7. GGbudgets'!H14 -> Rule for SSIF structural budget | F18: ='7. GGbudgets'!J14 -> Valid | G18: ='7. GGbudgets'!K14 -> Valid
B19: ='7. GGbudgets'!C18 -> Taisyklė savivaldybių (j) asignavimams, kurie neviršija 0,3 proc. BVP | C19: ='7. GGbudgets'!E18 -> Galioja | D19: ='7. GGbudgets'!F18 -> Galioja | E19: ='7. GGbudgets'!H18 -> Rule for local governments (j) appropriations of which does not exceed 0.3 % of GDP | F19: ='7. GGbudgets'!J18 -> Valid | G19: ='7. GGbudgets'!K18 -> Valid
B21: Šaltiniai: | E21: Sources:
B22: Finansų ministerija | C22: FM | E22: Ministry of Finance | F22: MoF
B23: Fiskalinė institucija | C23: IFI | E23: Independent Fiscal Institution | F23: IFI

Sheet 2. Macro
B1: ↖ atgal į turinį | D1: ↖ back to content
A2: =Kalba -> EN
B3: 2 lentelė. Makroekonominiai ir ciklo rodikliai | D3: Table 2. Macroeconomic and cyclical indicators
B4: Rodiklis | C4: Žymėjimas | Formulė | D4: Indicator | E4: Notation | Formula | F4: =IF(A2="LT","Duomenys atnaujinti","Data updated on") -> Data updated on | G4: =IF(A2="LT","Faktas","Actuals") -> Actuals | O4: =CONCATENATE("2019-03-21",IF(A2="LT"," Projekcijos"," Projections")) -> 2019-03-21 Projections
G5: 2011 | H5: =G5+1 -> 2012 | I5: 2013 | J5: 2014 | K5: 2015 | L5: 2016 | M5: =L5+1 -> 2017 | N5: 2018 | O5: =CONCATENATE(N5+1,"P") -> 2019P | P5: =CONCATENATE(N5+2,"P") -> 2020P | Q5: =CONCATENATE(N5+3,"P") -> 2021P | R5: =CONCATENATE(N5+4,"P") -> 2022P
B6: Laikas | C6: T | D6: Time | E6: T | G6: t−7 | H6: t−6 | I6: t−5 | J6: t−4 | K6: t−3 | L6: t−2 | M6: t−1 | N6: t | O6: t+1 | P6: t+2 | Q6: t+3 | R6: t+4
B7: Nominalus BVP, mln. EUR | C7: YN(T) | D7: Nominal GDP, million EUR | E7: YN(T) | F7: 2019-03-21 | G7: 31275.3173 | H7: 33348.47624 | I7: 34959.64612 | J7: 36568.28063 | K7: 37433.90632 | L7: 38849.43223 | M7: 42190.83084 | N7: 45133.55188 | O7: 47369.12538 | P7: 49608.97018 | Q7: 51843.39553 | R7: 54113.30773
F8: 2019-03-21 | G8: 31275.3173 | H8: 33348.47624 | I8: 34959.64612 | J8: 36568.28063 | K8: 37426.60955 | L8: 38680.92153 | M8: 42190.83084 | N8: 45133.55188 | O8: 47369.12538 | P8: 49608.97018 | Q8: 51843.39553 | R8: 54113.30773
B9: Nominalus BVP, metinis augimas proc. | C9: ΔYN(T)=(YN(T)/YN(T–1)–1)∙100 | D9: Nominal GDP growth, annual % change | E9: ΔYN(T)=(YN(T)/YN(T–1)–1)∙100 | F9: =$F$7 -> 2019-03-21 | H9: =(H7/G7-1)*100 -> 6.628738309 | I9: 4.831314828 | J9: 4.601403891 | K9: 2.367148991 | L9: 3.781400477 | M9: =(M7/L7-1)*100 -> 8.600894313 | N9: =(N7/M7-1)*100 -> 6.974788096 | O9: 4.953240771 | P9: 4.728490943 | Q9: 4.504075242 | R9: 4.378401888
F10: =$F$8 -> 2019-03-21 | H10: 6.628738309 | I10: 4.831314828 | J10: 4.601403891 | K10: 2.347195169 | L10: 3.351390894 | M10: =(M8/L8-1)*100 -> 9.074006424 | N10: =(N8/M8-1)*100 -> 6.974788096 | O10: 4.953240771 | P10: 4.728490943 | Q10: 4.504075242 | R10: 4.378401888
B11: Realus BVP, mln. EUR | C11: YR(T) | D11: Real GDP, million EUR | E11: YR(T) | F11: =$F$7 -> 2019-03-21 | G11: 29721.40758 | H11: 30858.83223 | I11: 31938.45339 | J11: 33068.30359 | K11: 33736.49096 | L11: 34530.37176 | M11: 35959.91141 | N11: 37199.00196 | O11: 38182.39314 | P11: 39110.41809 | Q11: 40018.76794 | R11: 40932.22974
F12: =$F$8 -> 2019-03-21 | G12: 29721.40758 | H12: 30858.83223 | I12: 31938.45339 | J12: 33068.30359 | K12: 33741.12749 | L12: 34532.31673 | M12: 35959.91141 | N12: 37199.00196 | O12: 38182.39314 | P12: 39110.41809 | Q12: 40018.76794 | R12: 40932.22974
B13: Realus BVP, metinis augimas proc. | C13: ΔYR(T)=(YR(T)/YR(T–1)–1)∙100 | D13: Real GDP growth, annual % change | E13: ΔYR(T)=(YR(T)/YR(T–1)–1)∙100 | F13: =$F$7 -> 2019-03-21 | H13: =(H11/G11-1)*100 -> 3.826954186 | I13: 3.498580738 | J13: 3.537585817 | K13: 2.020627905 | L13: 2.353181309 | M13: =(M11/L11-1)*100 -> 4.139948642 | N13: =(N11-M11)/M11*100 -> 3.445755273 | O13: =(O11/N11-1)*100 -> 2.643595622 | P13: =(P11/O11-1)*100 -> 2.430504935 | Q13: =(Q11/P11-1)*100 -> 2.322526548 | R13: 2.28258352
F14: =$F$8 -> 2019-03-21 | H14: 3.826954186 | I14: 3.498580738 | J14: 3.537585817 | K14: 2.03464898 | L14: 2.344880867 | M14: =(M12/L12-1)*100 -> 4.134083134 | N14: =(N12-M12)/M12*100 -> 3.445755273 | O14: =(O12/N12-1)*100 -> 2.643595622 | P14: =(P12/O12-1)*100 -> 2.430504935 | Q14: =(Q12/P12-1)*100 -> 2.322526548 | R14: 2.28258352
B15: Potencialus BVP, mln. EUR | C15: Y*(T) | D15: Potential GDP, million EUR | E15: Y*(T) | F15: 2019-03-29 | G15: 31144.58963 | H15: 31761.68437 | I15: 32376.27576 | J15: 33070.33761 | K15: 33843.13171 | L15: 34660.89642 | M15: 35555.6797 | N15: 36551.25119 | O15: 37613.73132 | P15: 38723.58847 | Q15: 39833.67394 | R15: 40912.54176
F16: 2019-03-21 | G16: 31168.13423 | H16: 31577.86229 | I16: 32178.71782 | J16: 32853.65474 | K16: 33555.37117 | L16: 34209.90568 | M16: 35052.18069 | N16: 36142.37005 | O16: 37424.45132 | P16: 38748.46441 | Q16: 39931.17332 | R16: 40948.86738
B17: Potencialus BVP, metinis augimas proc. | C17: ΔY*(T)=(Y*(T)/Y*(T–1)–1)∙100 | D17: Potential GDP growth, annual % change | E17: ΔY*(T)=(Y*(T)/Y*(T–1)–1)∙100 | F17: 2019-03-29 | H17: =(H15/G15-1)*100 -> 1.981386653 | I17: =(I15/H15-1)*100 -> 1.935008818 | J17: 2.143735922 | K17: 2.336819486 | L17: 2.416338769 | M17: 2.58153532 | N17: =(N15/M15-1)*100 -> 2.800035037 | O17: 2.906822869 | P17: 2.950670158 | Q17: 2.866690613 | R17: 2.708431617
F18: =$F$16 -> 2019-03-21 | H18: =(H16/G16-1)*100 -> 1.314573604 | I18: =(I16/H16-1)*100 -> 1.902774543 | J18: 2.09746368 | K18: =(K16/J16-1)*100 -> 2.135885448 | L18: =(L16/K16-1)*100 -> 1.950610273 | M18: =(M16/L16-1)*100 -> 2.462079306 | N18: =(N16/M16-1)*100 -> 3.110189823 | O18: =(O16/N16-1)*100 -> 3.547308248 | P18: 3.537828996 | Q18: 3.052272971 | R18: 2.548620477
B19: Atotrūkis nuo potencialo, proc. pot. BVP | C19: AP(T)=(YR(T)/Y*(T)–1)∙100 | D19: Output gap (OG), % pot. GDP | E19: OG(T)=(YR(T)/Y*(T–1)–1)∙100 | F19: 2019-03-29 | G19: =(G$11/G15-1)*100 -> -4.569596407 | H19: =(H11/H15-1)*100 -> -2.842582681 | I19: -1.352293806 | J19: -0.00615061118 | K19: -0.3151030831 | L19: -0.3765761345 | M19: =(M11/M15-1)*100 -> 1.136897712 | N19: 1.772171245 | O19: 1.511846345 | P19: 0.9989508767 | Q19: =(Q11/Q15-1)*100 -> 0.4646671419 | R19: 0.0481221065
F20: =$F$16 -> 2019-03-21 | G20: =(G$12/G16-1)*100 -> -4.641685121 | H20: =(H$12/H16-1)*100 -> -2.277006772 | I20: -0.7466563113 | J20: 0.6533484715 | K20: 0.5535814849 | L20: 0.9424493915 | M20: 2.589655489 | N20: 2.923526894 | O20: 2.025258341 | P20: =(P$12/P16-1)*100 -> 0.9341110331 | Q20: =(Q$12/Q16-1)*100 -> 0.2193639991 | R20: -0.04063027914
B21: Ciklinė VS biudžeto dedamoji, proc. pot. BVP | C21: CB(T) = ε∙AP(T) | D21: Cyclical GG budgetary component, % pot. GDP | E21: CB(T) = ε∙OG(T) | F21: =$F$15 -> 2019-03-29 | G21: =G19*G38 -> -1.823268966 | H21: =H19*H38 -> -1.13419049 | I21: -0.5395652286 | J21: -0.002454093861 | K21: -0.1257261302 | L21: -0.1502538777 | M21: =M19*M38 -> 0.4536221872 | N21: =N19*N38 -> 0.7070963269 | O21: =O19*O38 -> 0.6032266916 | P21: 0.3985813998 | Q21: =Q19*Q38 -> 0.1854021896 | R21: 0.01920072049
F22: =$F$16 -> 2019-03-21 | G22: =G20*G38 -> -1.852032363 | H22: =H20*H38 -> -0.908525702 | I22: -0.2979158682 | J22: 0.2606860401 | K22: 0.2208790125 | L22: 0.3760373072 | M22: =M20*M38 -> 1.03327254 | N22: =N20*N38 -> 1.166487231 | O22: =O20*O38 -> 0.8080780779 | P22: 0.3727103022 | Q22: 0.08752623564 | R22: -0.01621148138
B23: Ciklinė VSDF biudžeto dedamoji, proc. pot. BVP | C23: CBVSDF(T) = εVSDF∙AP(T) | D23: Cyclical SSIF budgetary component, % pot. GDP | E23: CBSSIF(T) = εSSIF∙OG(T) | F23: =$F$15 -> 2019-03-29 | G23: =G19*G39 -> -0.4775228245 | H23: =H19*H39 -> -0.2970498901 | I23: =I19*I39 -> -0.1413147027 | J23: -0.0006427388683 | K23: -0.03292827218 | L23: -0.03935220606 | M23: 0.1188058109 | N23: 0.1789892958 | O23: =O19*O39 -> 0.1526964808 | P23: =P19*P39 -> 0.1008940385 | Q23: 0.04693138133 | R23: 0.004860332756
F24: =$F$16 -> 2019-03-21 | G24: =G20*G39 -> -0.4850560951 | H24: =H20*H39 -> -0.2379472077 | I24: =I20*I39 -> -0.07802558453 | J24: 0.06827491527 | K24: =K20*K39 -> 0.05784926518 | L24: 0.09848596142 | M24: 0.2706189986 | N24: 0.2952762163 | O24: =O20*O39 -> 0.2045510924 | P24: =P20*P39 -> 0.09434521434 | Q24: =Q20*Q39 -> 0.02215576391 | R24: -0.004103658193
B25: Ciklinė PSDF biudžeto dedamoji, proc. pot. BVP | C25: CBPSDF(T) = εPSDF∙AP(T) | D25: Cyclical NHIF budgetary component, % pot. GDP | E25: CBNHIF(T) = εNHIF∙OG(T) | F25: =$F$15 -> 2019-03-29 | M25: =M19*M40 -> 0.05116039705 | N25: 0.07974770604 | O25: =O19*O40 -> 0.06803308551 | P25: =P19*P40 -> 0.04495278945 | Q25: 0.02091002138 | R25: 0.002165494792
F26: =$F$16 -> 2019-03-21 | M26: =M20*M40 -> 0.116534497 | N26: =N20*N40 -> 0.1315587102 | O26: =O20*O40 -> 0.09113662533 | P26: =P20*P40 -> 0.04203499649 | Q26: 0.009871379959 | R26: -0.001828362561
B27: BVP defliatorius, 2010 = 100 | C27: PY(T) = YN(T)/YR(T) | D27: GDP deflator, 2010 = 100 | E27: PY(T) = YN(T)/YR(T) | F27: =$F$7 -> 2019-03-21 | G27: =G7/G11*100 -> 105.2282508 | H27: 108.0678491 | I27: 109.4594209 | J27: 110.584084 | K27: 110.9596916 | L27: 112.5080046 | M27: =M7/M11*100 -> 117.3274048 | N27: 121.3300076 | O27: =O7/O11*100 -> 124.0601269 | P27: 126.8433645 | Q27: 129.5477052 | R27: 132.2021988
F28: =$F$8 -> 2019-03-21 | G28: =G8/G12*100 -> 105.2282508 | H28: 108.0678491 | I28: 109.4594209 | J28: 110.584084 | K28: 110.9228183 | L28: 112.013688 | M28: 117.3274048 | N28: 121.3300076 | O28: 124.0601269 | P28: 126.8433645 | Q28: 129.5477052 | R28: 132.2021988
B29: BVP defliatorius, metinis augimas proc. | C29: ΔPY(T)=(PY(T)/PY(T–1)–1)∙100 | D29: GDP deflator, annual % change | E29: ΔPY(T)=(PY(T)/PY(T)–1)∙100 | F29: =$F$7 -> 2019-03-21 | H29: =(H27/G27-1)*100 -> 2.698513257 | I29: =(I27/H27-1)*100 -> 1.287683445 | J29: 1.027470425 | K29: 0.3396578646 | L29: 1.395383269 | M29: =(M27/L27-1)*100 -> 4.28360656 | N29: 3.411481519 | O29: 2.250160018 | P29: =(P27/O27-1)*100 -> 2.243458635 | Q29: 2.132031691 | R29: 2.049047155
F30: =$F$8 -> 2019-03-21 | H30: =(H28/G28-1)*100 -> 2.698513257 | I30: =(I28/H28-1)*100 -> 1.287683445 | J30: 1.027470425 | K30: 0.3063137793 | L30: 0.9834493119 | M30: 4.743810231 | N30: =(N28/M28-1)*100 -> 3.411481519 | O30: 2.250160018 | P30: =(P28/O28-1)*100 -> 2.243458635 | Q30: 2.132031691 | R30: 2.049047155
B31: Vidutinė metinė SVKI infliacija | C31: ΔSVKI(T) | D31: Average annual HICP inflation | E31: ΔHICP(T) | F31: =$F$8 -> 2019-03-21 | G31: 4.1 | H31: 3.2 | I31: 1.2 | J31: 0.2 | K31: -0.7 | L31: 0.7 | M31: 3.7 | N31: 2.5 | O31: 2.2 | P31: 2.2 | Q31: 2.1 | R31: 2
B32: ES nominalus BVP, mlrd. EUR | C32: YNES(T) | D32: EU nominal GDP, billion EUR | E32: YNEU(T) | F32: 2019-04-12 | G32: 13218.1308 | H32: 13484.5351 | I32: 13596.7738 | J32: 14071.9852 | K32: 14826.9292 | L32: 14958.293 | M32: 15382.5906 | N32: 15877.0402
B33: ES nominalus BVP, metinis augimas proc. | C33: ΔYNES(T)=(YNES(T)/YNES(T–1)–1)∙100 | D33: EU nominal GDP growth, annual % change | E33: ΔYNEU(T)=(YNEU(T)/YNEU(T–1)–1)∙100 | F33: =$F$32 -> 2019-04-12 | H33: =(H32/G32-1)*100 -> 2.015446087 | I33: =(I32/H32-1)*100 -> 0.8323512762 | J33: 3.495030564 | K33: 5.364872044 | L33: 0.8859811646 | M33: =(M32/L32-1)*100 -> 2.836537565 | N33: =(N32/M32-1)*100 -> 3.214345443
B34: VS biudžeto balansas mln. EUR | C34: BL(T) | D34: Balance of GG budget, million EUR | E34: BL(T) | F34: 2019-04-12 | G34: -2795.933735 | H34: -1048.974745 | I34: -912.4189064 | J34: -226.4538925 | K34: -98.10999996 | L34: 93.9 | M34: 205.2 | N34: 297.6
F35: 2019-04-12 | G35: -2795.933735 | H35: -1048.974745 | I35: -912.4189064 | J35: -226.4538925 | K35: -98.10999996 | L35: 93.9 | M35: 205.2 | N35: 297.6
B36: VS biudžeto balansas proc. BVP | C36: B(T)=BL(T)/YN(T) | D36: Balance of GG budget, % of GDP | E36: B(T)=BL(T)/YN(T) | F36: =+F34 -> 2019-04-12 | G36: =G34/G7*100 -> -8.939745385 | H36: -3.145495277 | I36: -2.609920316 | J36: -0.6192631663 | K36: -0.2620885972 | L36: 0.241702374 | M36: 0.4863616002 | N36: 0.659376423
F37: =F8 -> 2019-03-21 | G37: -8.939745385 | H37: -3.145495277 | I37: -2.609920316 | J37: -0.6192631663 | K37: -0.2621396946 | L37: 0.2427553333 | M37: 0.4863616002 | N37: =N35/N8*100 -> 0.659376423
B38: VS biudžeto dalinis elastingumas pot. BVP | C38: ε | D38: Semi-elasticity of the GG budget to the OG | E38: ε | F38: 2019-04-12 | G38: 0.399 | H38: =G38 -> 0.399 | I38: =G38 -> 0.399 | J38: =G38 -> 0.399 | K38: =G38 -> 0.399 | L38: =G38 -> 0.399 | M38: =G38 -> 0.399 | N38: =G38 -> 0.399 | O38: =G38 -> 0.399 | P38: =G38 -> 0.399 | Q38: =G38 -> 0.399 | R38: =G38 -> 0.399
B39: VSDF biudžeto semi-elastingumas pot. BVP | C39: εVSDF | D39: Semi-elasticity of the SSIF budget to the OG | E39: εSSIF | F39: =F26 -> 2019-03-21 | G39: =H39 -> 0.1045 | H39: =I39 -> 0.1045 | I39: 0.1045 | J39: =K39 -> 0.1045 | K39: 0.1045 | L39: =M39 -> 0.1045 | M39: 0.1045 | N39: =O39 -> 0.101 | O39: 0.101 | P39: =O39 -> 0.101 | Q39: =O39 -> 0.101 | R39: =O39 -> 0.101
B40: PSDF biudžeto semi-elastingumas pot. BVP | C40: εPSDF | D40: Semi-elasticity of the NHIF budget to the OG | E40: εNHIF | F40: =F26 -> 2019-03-21 | M40: =O40 -> 0.045 | N40: =O40 -> 0.045 | O40: 0.045 | P40: =O40 -> 0.045 | Q40: =O40 -> 0.045 | R40: =O40 -> 0.045
C42: Šaltiniai: | E42: Sources:
C43: Europos Komisija, Eurostatas, Lietuvos statistikos departamentas | E43: European Commission, Eurostat, Statistics Lithuania
B44: 2019 pavasario ERS duomenys | C44: Finansų ministerija (FM) | D44: 2019 spring EDS data | E44: Ministry of Finance (MoF)
C45: Fiskalinės institucijos skaičiavimai | E45: Independent fiscal institution calculations
C46: ERS – ekonominės raidos scenarijus | E46: EDS – economic development scenario
C47: Dėmesio: langeliai su formulėmis, atnaujinami tik spalvoti langeliai | E47: Warning: cells with formulas, data inputs are marked with coloured cells
C48: Apvalinimo tikslumas | E48: Rounding threshold | F48: 0.05

Sheet 3. GGbudget
B1: ↖ atgal į turinį | D1: ↖ back to content
A2: =Kalba -> EN
B3: 3 lentelė. VS fiskaliniai rodikliai | D3: Table 3. GG fiscal indicators
B4: Rodiklis | C4: Žymėjimas | Formulė | D4: Indicator | E4: Notation | Formula | F4: =IF($A$2="LT","proc. BVP","% of GDP") -> % of GDP | G4: =IF($A$2="LT","mln. EUR", "mil. EUR") -> mil. EUR | H4: =IF($A$2="LT","proc. BVP","% of GDP") -> % of GDP | I4: =IF($A$2="LT","mln. EUR", "mil. EUR") -> mil. EUR | J4: =IF($A$2="LT","proc. BVP","% of GDP") -> % of GDP | K4: =IF($A$2="LT","mln. EUR", "mil. EUR") -> mil. EUR | L4: =IF($A$2="LT","proc. BVP","% of GDP") -> % of GDP | M4: =IF($A$2="LT","mln. EUR", "mil. EUR") -> mil. EUR
F5: ='2. Macro'!M5 -> 2017 | G5: =F5 -> 2017 | H5: ='2. Macro'!N5 -> 2018 | I5: =H5 -> 2018 | J5: =G5 -> 2017 | K5: =J5 -> 2017 | L5: =I5 -> 2018 | M5: =L5 -> 2018
B6: Nominalus BVP | D6: Nominal GDP, million EUR | G6: ='2. Macro'!M8 -> 42190.83084 | I6: ='2. Macro'!N8 -> 45133.55188 | K6: ='2. Macro'!M7 -> 42190.83084 | M6: ='2. Macro'!N7 -> 45133.55188
B7: Grynasis skolinimas (+) / grynasis skolinimasis (-), iš jo | C7: B=VP–VI | D7: Net lending (+) /net borrowing (-), of which | E7: B=TR–TE | F7: =G7/G6*100 -> 0.4863616002 | G7: =G10-G11 -> 205.2 | H7: =H10-H11 -> 0.659376423 | I7: =I10-I11 -> 297.6 | J7: =K7/K6*100 -> 0.4863616002 | K7: =K10-K11 -> 205.2 | L7: 0.659376423 | M7: 297.6
B8: Valstybinis socialinio draudimo fondas | C8: VSDF | D8: State Social Insurance Fund | E8: SSIF | F8: =G8/G6*100 -> 0.312781994 | G8: 131.965322 | H8: =I8/I6*100 -> 8.656974328 | I8: 3907.2 | J8: =F8 -> 0.312781994 | K8: =G8 -> 131.965322 | L8: =H8 -> 8.656974328 | M8: =I8 -> 3907.2
B9: Privalomojo sveikatos draudimo fondas | C9: PSDF | D9: National Health Insurance Fund | E9: NHIF | F9: =G9/G6*100 -> 0.1624018457 | G9: 68.518688 | H9: =I9/I6*100 -> 0.1906240807 | I9: 86.03541837 | J9: =F9 -> 0.1624018457 | K9: =G9 -> 68.518688 | L9: =M9/M6*100 -> 0.1906240807 | M9: =I9 -> 86.03541837
B10: Visos pajamos | C10: VP | D10: Total revenues | E10: TR | F10: =G10/G6*100 -> 33.5758022 | G10: 14165.90991 | H10: =I10/I6*100 -> 34.65350687 | I10: 15640.3585 | J10: =K10/K6*100 -> 33.5758022 | K10: 14165.90991 | L10: =M10/M6*100 -> 34.65350687 | M10: 15640.3585
B11: Visos išlaidos, iš jų | C11: VI | D11: Total expenditures, of which | E11: TE | F11: =G11/G6*100 -> 33.0894406 | G11: 13960.70991 | H11: =I11/I6*100 -> 33.99413045 | I11: 15342.7585 | J11: =K11/K6*100 -> 33.0894406 | K11: 13960.70991 | L11: =M11/M6*100 -> 33.99413045 | M11: 15342.7585
B12: Centrinė valdžia, be pervedimų SAF | C12: CV | D12: Central government, net of transfers to SSF | E12: CG | F12: =G12/G6*100 -> 17.81922214 | G12: 7518.077869 | H12: =I12/I6*100 -> 18.02193308 | I12: 8133.938518 | J12: =K12/K6*100 -> 17.81922214 | K12: =G12 -> 7518.077869 | L12: =M12/M6*100 -> 18.02193308 | M12: =I12 -> 8133.938518
B13: Socialinės apsaugos fondai, be pervedimų CV | C13: SAF | D13: Social Security Funds, net of transfers to CG | E13: SSF | F13: =G13/G6*100 -> 12.44099988 | G13: 5248.961216 | H13: =I13/I6*100 -> 12.92002614 | I13: 5831.2667 | J13: =K13/K6*100 -> 12.44099988 | K13: =G13 -> 5248.961216 | L13: =M13/M6*100 -> 12.92002614 | M13: =I13 -> 5831.2667
B14: Konsoliduotos išlaidos VS posektorių, kurių išlaidos > 3 proc. BVP | C14: AV3=CV+SAF | D14: Consolidated expenditure of GG subsectors with exp. > 3 % of GDP | E14: AG3=CG+SSF | F14: =F13+F12 -> 30.26022202 | G14: =G13+G12 -> 12767.03909 | H14: =I14/I6*100 -> 30.94195922 | I14: =I12+I13 -> 13965.20522 | J14: =K14/K6*100 -> 30.26022202 | K14: =K12+K13 -> 12767.03909 | L14: =M14/M6*100 -> 30.94195922 | M14: =M12+M13 -> 13965.20522
B15: Vienkartinės ir kitos laikinosios priemonės | C15: 1klp | D15: One-off and temporary measures | E15: 1off | F15: =G15/G6*100 -> 0.02678307058 | G15: 11.3 | H15: =I15/I6*100 -> -0.01550952608 | I15: -7 | J15: =K15/K6*100 -> 0.02678307058 | K15: =G15 -> 11.3 | L15: =M15/M6*100 -> -0.01550952608 | M15: =I15 -> -7
B16: Vienkartinės ir kitos laikinosios priemonės, VSDF | C16: 1klpVSDF | D16: One-off and temporary measures, SSIF | E16: 1offSSIF | F16: =G16/G6*100 -> 0 | G16: 0 | H16: =I16/$I$6*100 -> 0 | I16: 0 | J16: =F16 -> 0 | K16: =G16 -> 0 | L16: =M16/$M$6*100 -> 0 | M16: =I16 -> 0
B17: Vienkartinės ir kitos laikinosios priemonės, PSDF | C17: 1klpPSDF | D17: One-off and temporary measures, NHIF | E17: 1offNHIF | F17: =G17/G7*100 -> 0 | G17: 0 | H17: =I17/$I$6*100 -> 0 | I17: 0 | J17: =F17 -> 0 | K17: =G17 -> 0 | L17: =M17/$M$6*100 -> 0 | M17: =I17 -> 0
B18: Lankstumo galimybė dėl vykdomų struktūrinių reformų | C18: SR | D18: Structural reform flexibility clause | E18: SR | F18: 0.5 | H18: 0.5 | J18: 0.5 | L18: 0.5
B19: Struktūrinis VS balansas, neįtraukiant struktūrinių reformų | C19: SB = B–CB–1klp+SR | D19: Structural GG balance, excluding structural reforms | E19: SB = B–CB–1off+SR | F19: =F7-F15-'2. Macro'!M22+F18 -> -0.07369401054 | H19: =H7-H15-'2. Macro'!N22+H18 -> 0.008398718379 | J19: =J7-J15-'2. Macro'!M21+J18 -> 0.5059563424 | L19: =L7-L15-'2. Macro'!N21+L18 -> 0.4677896222
B20: Struktūrinis VSDF balansas | C20: SBVSDF = VSDF– CBVSDF–1klpVSDF | D20: Structural SSIF balance | E20: SBSSIF = SSIF– CBSSIF–1offSSIF | F20: =F8-F16-'2. Macro'!M24 -> 0.04216299543 | H20: =H8-H16-'2. Macro'!N24 -> 8.361698112 | J20: =J8-J16-'2. Macro'!M23 -> 0.1939761831 | L20: =L8-L16-'2. Macro'!N23 -> 8.477985032
B21: Struktūrinis PSDF balansas | C21: SBPSDF = PSDF– CBPSDF–1klpPSDF | D21: Structural NHIF balance | E21: SBNHIF = NHIF– CBNHIF–1offNHIF | F21: =F9-F17-'2. Macro'!M26 -> 0.0458673487 | H21: =H9-H17-'2. Macro'!N26 -> 0.05906537047 | J21: =J9-J17-'2. Macro'!M25 -> 0.1112414487 | L21: =L9-L17-'2. Macro'!N25 -> 0.1108763747
B22: Vidutinio laikotarpio tikslas | C22: VLT | D22: Medium-term objective | E22: MTO | F22: -1 | H22: -1 | J22: =F22 -> -1 | L22: =H22 -> -1
B23: Struktūrinio postūmio užduotis | C23: SPU | D23: Structural adjustment target | E23: SAT | F23: 0 | H23: 0 | J23: =F23 -> 0 | L23: =H23 -> 0
C25: Šaltiniai: | E25: Sources:
C26: Finansų ministerija, VSDF, PSDF | E26: Ministry of Finance, SSIF, NHIF
C27: Fiskalinės institucijos skaičiavimai | E27: Independent fiscal institution calculations
C29: Dėmesio: langeliai su formulėmis, atnaujinami tik spalvoti langeliai | E29: Warning: cells with formulas, data inputs are marked with coloured cells

Sheet 4. Municipalities
B1: ↖ back to content | E1: ↖ atgal į turinį | P1: tūkst. EUR
A2: =Kalba -> EN | B2: Table 4. Budget attributable to local government | E2: 4 lentelė. Savivaldybių biudžetai
B3: Local government | C3: Appropriations, % of GDP | D3: Code | E3: Savivaldybė | F3: Asignavimai, proc. BVP | G3: Kodas | H3: εi | I3: =IF(A2="LT","Pajamos","Revenues") -> Revenues | J3: Asignavimai | K3: =IF(A2="LT","Balansas","Balance") -> Balance | L3: =IF(A2="LT","Likutis (t-1)","Balance (t-1)") -> Balance (t-1) | M3: =IF(A2="LT","Kreditorinių įsipareigojimų pasikeitimas (t)","Change in Credit obligations (t)") -> Change in Credit obligations (t) | N3: =IF(A2="LT","Balansas kaupiamuoju principu","Balance on accrual basis") -> Balance on accrual basis | O3: =IF($A$2="LT","Fiskalinė taisyklė, vykdymas", "Fiscal rule, implementation") -> Fiscal rule, implementation
I4: =IF($A$2="LT","Vykdymas","Implementation") -> Implementation | J4: =I4 -> Implementation | K4: =J4 -> Implementation | O4: FM | P4: IFI
B5: Vilniaus m. | C5: =J5/$G$69/10 -> 1.341550021 | D5: 1 | E5: Vilniaus m. | F5: =J5/$G$69/10 -> 1.341550021 | G5: 1 | H5: =IF(F5>0.3, J5/'3. GGbudget'!$I$11/1000*'2. Macro'!$N$38,0) -> 0.01471954531 | I5: 603795.3 | J5: =503227.2+62783.9 -> 566011.1 | K5: =I5-J5 -> 37784.2 | L5: 39479 | M5: =87425.4-31333.6 -> 56091.8 | N5: =K5+L5+M5 -> 133355 | O5: =IF(H5>0,IF(N5/$G$68/10-H5*$G$70<-eps,1,0),IF(($G$70+eps>=0)*(N5<0),1,IF(($G$70+eps<0)*(J5/I5>1.015),1,0))) -> 0 | P5: =IF(H5>0,IF(N5/$H$68/10-H5*$H$70<-eps,1,0),IF(($H$70+eps>=0)*(N5<0),1,IF(($H$70+eps<0)*(J5/I5>1.015),1,0))) -> 0
B6: Alytaus m. | C6: =J6/$G$69/10 -> 0.1320208654 | D6: 2 | E6: Alytaus m. | F6: =J6/$G$69/10 -> 0.1320208654 | G6: 2 | H6: =IF(F6>0.3, J6/'3. GGbudget'!$I$11/1000*'2. Macro'!$N$38,0) -> 0 | I6: 65611.6 | J6: 55700.7 | K6: =I6-J6 -> 9910.9 | O6: =IF(H6>0,IF(N6/$G$68/10-H6*$G$70<-eps,1,0),IF(($G$70+eps>=0)*(N6<0),1,IF(($G$70+eps<0)*(J6/I6>1.015),1,0))) -> 0 | P6: =IF(H6>0,IF(N6/$H$68/10-H6*$H$70<-eps,1,0),IF(($H$70+eps>=0)*(N6<0),1,IF(($H$70+eps<0)*(J6/I6>1.015),1,0))) -> 0
B7: Birštono m. | C7: 0.0221422518 | D7: 3 | E7: Birštono m. | F7: 0.0221422518 | G7: 3 | H7: =IF(F7>0.3, J7/'3. GGbudget'!$I$11/1000*'2. Macro'!$N$38,0) -> 0 | I7: 9893.7 | J7: 9342 | K7: 551.7 | O7: 0 | P7: 0
B8: Druskininkų m. | C8: 0.06233581913 | D8: 4 | E8: Druskininkų m. | F8: 0.06233581913 | G8: 4 | H8: =IF(F8>0.3, J8/'3. GGbudget'!$I$11/1000*'2. Macro'!$N$38,0) -> 0 | I8: 28750.2 | J8: 26300 | K8: 2450.2 | O8: 0 | P8: 0
B9: Kauno m. | C9: 0.7538865523 | D9: 5 | E9: Kauno m. | F9: 0.7538865523 | G9: 5 | H9: =IF(F9>0.3, J9/'3. GGbudget'!$I$11/1000*'2. Macro'!$N$38,0) -> 0.008271676112 | I9: 313760.9 | J9: =263461.6+54609.4 -> 318071 | K9: -4310.1 | L9: 28284.6 | M9: =3803.8-4657.5 -> -853.7 | N9: =K9+L9+M9 -> 23120.8 | O9: 0 | P9: 0
B10: Klaipėdos m. | C10: 0.400107788 | D10: 6 | E10: Klaipėdos m. | F10: 0.400107788 | G10: 6 | H10: =IF(F10>0.3, J10/'3. GGbudget'!$I$11/1000*'2. Macro'!$N$38,0) -> 0.00439000009 | I10: 173430.3 | J10: =143824.7+24984.1 -> 168808.8 | K10: 4621.5 | L10: 26003.8 | M10: =1832.6-2163.6 -> -331 | N10: =K10+L10+M10 -> 30294.3 | O10: 0 | P10: 0
B11: Marijampolės m. | C11: 0.128225965 | D11: 7 | E11: Marijampolės m. | F11: 0.128225965 | G11: 7 | H11: =IF(F11>0.3, J11/'3. GGbudget'!$I$11/1000*'2. Macro'!$N$38,0) -> 0 | I11: 54908.3 | J11: 54099.6 | K11: 808.7 | O11: 0 | P11: 0
B12: Neringos m. | C12: 0.02604712868 | D12: 8 | E12: Neringos m. | F12: 0.02604712868 | G12: 8 | H12: =IF(F12>0.3, J12/'3. GGbudget'!$I$11/1000*'2. Macro'!$N$38,0) -> 0 | I12: 12691.7 | J12: 10989.5 | K12: 1702.2 | O12: =IF(H12>0,IF(N12/$G$68/10-H12*$G$70<-eps,1,0),IF(($G$70+eps>=0)*(N12<0),1,IF(($G$70+eps<0)*(J12/I12>1.015),1,0))) -> 0 | P12: 0
B13: Palangos m. | C13: 0.0710550122 | D13: 9 | E13: Palangos m. | F13: 0.0710550122 | G13: 9 | H13: =IF(F13>0.3, J13/'3. GGbudget'!$I$11/1000*'2. Macro'!$N$38,0) -> 0 | I13: 31459.9 | J13: 29978.7 | K13: 1481.2 | O13: 0 | P13: 0
B14: Panevėžio m. | C14: 0.2069907093 | D14: 10 | E14: Panevėžio m. | F14: 0.2069907093 | G14: 10 | H14: =IF(F14>0.3, J14/'3. GGbudget'!$I$11/1000*'2. Macro'!$N$38,0) -> 0 | I14: 92805.2 | J14: 87331.1 | K14: 5474.1 | O14: 0 | P14: 0
B15: Šiaulių m. | C15: 0.2826886734 | D15: 11 | E15: Šiaulių m. | F15: 0.2826886734 | G15: 11 | H15: =IF(F15>0.3, J15/'3. GGbudget'!$I$11/1000*'2. Macro'!$N$38,0) -> 0 | I15: 134238 | J15: 119268.7 | K15: 14969.3 | O15: 0 | P15: 0
B16: Visagino m. | C16: 0.05978905724 | D16: 12 | E16: Visagino m. | F16: 0.05978905724 | G16: 12 | H16: =IF(F16>0.3, J16/'3. GGbudget'!$I$11/1000*'2. Macro'!$N$38,0) -> 0 | I16: 28960.2 | J16: 25225.5 | K16: 3734.7 | O16: 0 | P16: 0
B17: Akmenės raj. | C17: 0.06807829908 | D17: 13 | E17: Akmenės raj. | F17: 0.06807829908 | G17: 13 | H17: =IF(F17>0.3, J17/'3. GGbudget'!$I$11/1000*'2. Macro'!$N$38,0) -> 0 | I17: 31257.7 | J17: 28722.8 | K17: 2534.9 | O17: 0 | P17: 0
B18: Alytaus raj. | C18: 0.05411460155 | D18: 14 | E18: Alytaus raj. | F18: 0.05411460155 | G18: 14 | H18: =IF(F18>0.3, J18/'3. GGbudget'!$I$11/1000*'2. Macro'!$N$38,0) -> 0 | I18: 30504.9 | J18: 22831.4 | K18: 7673.5 | O18: 0 | P18: 0
B19: Anykščių raj. | C19: 0.06563843245 | D19: 15 | E19: Anykščių raj. | F19: 0.06563843245 | G19: 15 | H19: =IF(F19>0.3, J19/'3. GGbudget'!$I$11/1000*'2. Macro'!$N$38,0) -> 0 | I19: 28944.9 | J19: 27693.4 | K19: 1251.5 | O19: 0 | P19: 0
B20: Biržų raj. | C20: 0.06119291677 | D20: 16 | E20: Biržų raj. | F20: 0.06119291677 | G20: 16 | H20: =IF(F20>0.3, J20/'3. GGbudget'!$I$11/1000*'2. Macro'!$N$38,0) -> 0 | I20: 27251.4 | J20: 25817.8 | K20: 1433.6 | O20: 0 | P20: 0
B21: Ignalinos raj. | C21: 0.04309182739 | D21: 17 | E21: Ignalinos raj. | F21: 0.04309182739 | G21: 17 | H21: =IF(F21>0.3, J21/'3. GGbudget'!$I$11/1000*'2. Macro'!$N$38,0) -> 0 | I21: 19267.7 | J21: 18180.8 | K21: 1086.9 | O21: 0 | P21: 0
B22: Jonavos raj. | C22: 0.1152895049 | D22: 18 | E22: Jonavos raj. | F22: 0.1152895049 | G22: 18 | H22: =IF(F22>0.3, J22/'3. GGbudget'!$I$11/1000*'2. Macro'!$N$38,0) -> 0 | I22: 52216.3 | J22: 48641.6 | K22: 3574.7 | O22: 0 | P22: 0
B23: Joniškio raj. | C23: 0.06310683974 | D23: 19 | E23: Joniškio raj. | F23: 0.06310683974 | G23: 19 | H23: =IF(F23>0.3, J23/'3. GGbudget'!$I$11/1000*'2. Macro'!$N$38,0) -> 0 | I23: 27544.3 | J23: 26625.3 | K23: 919 | O23: 0 | P23: 0
B24: Jurbarko raj. | C24: 0.06611033593 | D24: 20 | E24: Jurbarko raj. | F24: 0.06611033593 | G24: 20 | H24: =IF(F24>0.3, J24/'3. GGbudget'!$I$11/1000*'2. Macro'!$N$38,0) -> 0 | I24: 29929.7 | J24: 27892.5 | K24: 2037.2 | O24: 0 | P24: 0
B25: Kaišiadorių raj. | C25: 0.07245507944 | D25: 21 | E25: Kaišiadorių raj. | F25: 0.07245507944 | G25: 21 | H25: =IF(F25>0.3, J25/'3. GGbudget'!$I$11/1000*'2. Macro'!$N$38,0) -> 0 | I25: 34436.9 | J25: 30569.4 | K25: 3867.5 | O25: 0 | P25: 0
B26: Kauno raj. | C26: 0.1890081291 | D26: 22 | E26: Kauno raj. | F26: 0.1890081291 | G26: 22 | H26: =IF(F26>0.3, J26/'3. GGbudget'!$I$11/1000*'2. Macro'!$N$38,0) -> 0 | I26: 83293.2 | J26: 79744.1 | K26: 3549.1 | O26: 0 | P26: 0
B27: Kėdainių raj. | C27: 0.127385024 | D27: 23 | E27: Kėdainių raj. | F27: 0.127385024 | G27: 23 | H27: =IF(F27>0.3, J27/'3. GGbudget'!$I$11/1000*'2. Macro'!$N$38,0) -> 0 | I27: 60823.1 | J27: 53744.8 | K27: 7078.3 | O27: 0 | P27: 0
B28: Kelmės raj. | C28: 0.07663963794 | D28: 24 | E28: Kelmės raj. | F28: 0.07663963794 | G28: 24 | H28: =IF(F28>0.3, J28/'3. GGbudget'!$I$11/1000*'2. Macro'!$N$38,0) -> 0 | I28: 33758.6 | J28: 32334.9 | K28: 1423.7 | O28: 0 | P28: 0
B29: Klaipėdos raj. | C29: 0.1207290755 | D29: 25 | E29: Klaipėdos raj. | F29: 0.1207290755 | G29: 25 | H29: =IF(F29>0.3, J29/'3. GGbudget'!$I$11/1000*'2. Macro'!$N$38,0) -> 0 | I29: 52928.8 | J29: 50936.6 | K29: 1992.2 | O29: 0 | P29: 0
B30: Kretingos raj. | C30: 0.09187304263 | D30: 26 | E30: Kretingos raj. | F30: 0.09187304263 | G30: 26 | H30: =IF(F30>0.3, J30/'3. GGbudget'!$I$11/1000*'2. Macro'!$N$38,0) -> 0 | I30: 41030.7 | J30: 38762 | K30: 2268.7 | O30: 0 | P30: 0
B31: Kupiškio raj. | C31: 0.05235711068 | D31: 27 | E31: Kupiškio raj. | F31: 0.05235711068 | G31: 27 | H31: =IF(F31>0.3, J31/'3. GGbudget'!$I$11/1000*'2. Macro'!$N$38,0) -> 0 | I31: 22651.1 | J31: 22089.9 | K31: 561.2 | O31: 0 | P31: 0
B32: Lazdijų raj. | C32: 0.05613660487 | D32: 28 | E32: Lazdijų raj. | F32: 0.05613660487 | G32: 28 | H32: =IF(F32>0.3, J32/'3. GGbudget'!$I$11/1000*'2. Macro'!$N$38,0) -> 0 | I32: 25079 | J32: 23684.5 | K32: 1394.5 | O32: 0 | P32: 0
B33: Mažeikių raj. | C33: 0.1310803767 | D33: 30 | E33: Mažeikių raj. | F33: 0.1310803767 | G33: 30 | H33: =IF(F33>0.3, J33/'3. GGbudget'!$I$11/1000*'2. Macro'!$N$38,0) -> 0 | I33: 57757.9 | J33: 55303.9 | K33: 2454 | O33: 0 | P33: 0
B34: Molėtų raj. | C34: 0.05126919658 | D34: 31 | E34: Molėtų raj. | F34: 0.05126919658 | G34: 31 | H34: =IF(F34>0.3, J34/'3. GGbudget'!$I$11/1000*'2. Macro'!$N$38,0) -> 0 | I34: 22313.2 | J34: 21630.9 | K34: 682.3 | O34: 0 | P34: 0
B35: Pakruojo raj. | C35: 0.05601240727 | D35: 32 | E35: Pakruojo raj. | F35: 0.05601240727 | G35: 32 | H35: =IF(F35>0.3, J35/'3. GGbudget'!$I$11/1000*'2. Macro'!$N$38,0) -> 0 | I35: 24405.7 | J35: 23632.1 | K35: 773.6 | O35: 0 | P35: 0
B36: Panevėžio raj. | C36: 0.07856825604 | D36: 33 | E36: Panevėžio raj. | F36: 0.07856825604 | G36: 33 | H36: =IF(F36>0.3, J36/'3. GGbudget'!$I$11/1000*'2. Macro'!$N$38,0) -> 0 | I36: 36196.8 | J36: 33148.6 | K36: 3048.2 | O36: 0 | P36: 0
B37: Pasvalio raj. | C37: 0.06631511977 | D37: 34 | E37: Pasvalio raj. | F37: 0.06631511977 | G37: 34 | H37: =IF(F37>0.3, J37/'3. GGbudget'!$I$11/1000*'2. Macro'!$N$38,0) -> 0 | I37: 28522.5 | J37: 27978.9 | K37: =I37-J37 -> 543.6 | O37: =IF(H37>0,IF(N37/$G$68/10-H37*$G$70<-eps,1,0),IF(($G$70+eps>=0)*(N37<0),1,IF(($G$70+eps<0)*(J37/I37>1.015),1,0))) -> 0 | P37: =IF(H37>0,IF(N37/$H$68/10-H37*$H$70<-eps,1,0),IF(($H$70+eps>=0)*(N37<0),1,IF(($H$70+eps<0)*(J37/I37>1.015),1,0))) -> 0
B38: Plungės raj. | C38: 0.0916398166 | D38: 35 | E38: Plungės raj. | F38: 0.0916398166 | G38: 35 | H38: =IF(F38>0.3, J38/'3. GGbudget'!$I$11/1000*'2. Macro'!$N$38,0) -> 0 | I38: 39929.5 | J38: 38663.6 | K38: 1265.9 | O38: 0 | P38: 0
B39: Prienų raj. | C39: 0.06945110921 | D39: 36 | E39: Prienų raj. | F39: 0.06945110921 | G39: 36 | H39: =IF(F39>0.3, J39/'3. GGbudget'!$I$11/1000*'2. Macro'!$N$38,0) -> 0 | I39: 30173.8 | J39: 29302 | K39: 871.8 | O39: 0 | P39: 0
B40: Radviliškio raj. | C40: 0.09185905855 | D40: 37 | E40: Radviliškio raj. | F40: 0.09185905855 | G40: 37 | H40: =IF(F40>0.3, J40/'3. GGbudget'!$I$11/1000*'2. Macro'!$N$38,0) -> 0 | I40: 43141.6 | J40: 38756.1 | K40: 4385.5 | O40: 0 | P40: 0
B41: Raseinių raj. | C41: 0.08897904889 | D41: 38 | E41: Raseinių raj. | F41: 0.08897904889 | G41: 38 | H41: =IF(F41>0.3, J41/'3. GGbudget'!$I$11/1000*'2. Macro'!$N$38,0) -> 0 | I41: 39465.3 | J41: 37541 | K41: 1924.3 | O41: 0 | P41: 0
B42: Rokiškio raj. | C42: 0.07836560538 | D42: 39 | E42: Rokiškio raj. | F42: 0.07836560538 | G42: 39 | H42: =IF(F42>0.3, J42/'3. GGbudget'!$I$11/1000*'2. Macro'!$N$38,0) -> 0 | I42: 33835.3 | J42: 33063.1 | K42: 772.2 | O42: 0 | P42: 0
B43: Skuodo raj. | C43: 0.04306717749 | D43: 40 | E43: Skuodo raj. | F43: 0.04306717749 | G43: 40 | H43: =IF(F43>0.3, J43/'3. GGbudget'!$I$11/1000*'2. Macro'!$N$38,0) -> 0 | I43: 18958.9 | J43: 18170.4 | K43: 788.5 | O43: 0 | P43: 0
B44: Šakių raj. | C44: 0.07060041106 | D44: 41 | E44: Šakių raj. | F44: 0.07060041106 | G44: 41 | H44: =IF(F44>0.3, J44/'3. GGbudget'!$I$11/1000*'2. Macro'!$N$38,0) -> 0 | I44: 31087.4 | J44: 29786.9 | K44: 1300.5 | O44: 0 | P44: 0
B45: Šalčininkų raj. | C45: 0.08988422187 | D45: 42 | E45: Šalčininkų raj. | F45: 0.08988422187 | G45: 42 | H45: =IF(F45>0.3, J45/'3. GGbudget'!$I$11/1000*'2. Macro'!$N$38,0) -> 0 | I45: 39647.5 | J45: 37922.9 | K45: 1724.6 | O45: 0 | P45: 0
B46: Šiaulių raj. | C46: 0.09660890575 | D46: 43 | E46: Šiaulių raj. | F46: 0.09660890575 | G46: 43 | H46: =IF(F46>0.3, J46/'3. GGbudget'!$I$11/1000*'2. Macro'!$N$38,0) -> 0 | I46: 41599.5 | J46: 40760.1 | K46: 839.4 | O46: 0 | P46: 0
B47: Šilalės raj. | C47: 0.06542535298 | D47: 44 | E47: Šilalės raj. | F47: 0.06542535298 | G47: 44 | H47: =IF(F47>0.3, J47/'3. GGbudget'!$I$11/1000*'2. Macro'!$N$38,0) -> 0 | I47: 28662.2 | J47: 27603.5 | K47: 1058.7 | O47: 0 | P47: 0
B48: Šilutės raj. | C48: 0.1143829098 | D48: 45 | E48: Šilutės raj. | F48: 0.1143829098 | G48: 45 | H48: =IF(F48>0.3, J48/'3. GGbudget'!$I$11/1000*'2. Macro'!$N$38,0) -> 0 | I48: 49567.2 | J48: 48259.1 | K48: 1308.1 | O48: 0 | P48: 0
B49: Širvintų raj. | C49: 0.04945221411 | D49: 46 | E49: Širvintų raj. | F49: 0.04945221411 | G49: 46 | H49: =IF(F49>0.3, J49/'3. GGbudget'!$I$11/1000*'2. Macro'!$N$38,0) -> 0 | I49: 21815.1 | J49: 20864.3 | K49: 950.8 | O49: 0 | P49: 0
B50: Švenčionių raj. | C50: 0.07426447732 | D50: 47 | E50: Švenčionių raj. | F50: 0.07426447732 | G50: 47 | H50: =IF(F50>0.3, J50/'3. GGbudget'!$I$11/1000*'2. Macro'!$N$38,0) -> 0 | I50: 32790.7 | J50: 31332.8 | K50: 1457.9 | O50: 0 | P50: 0
B51: Tauragės raj. | C51: 0.1014812914 | D51: 48 | E51: Tauragės raj. | F51: 0.1014812914 | G51: 48 | H51: =IF(F51>0.3, J51/'3. GGbudget'!$I$11/1000*'2. Macro'!$N$38,0) -> 0 | I51: 45413 | J51: 42815.8 | K51: 2597.2 | O51: 0 | P51: 0
B52: Telšių raj. | C52: 0.1070938853 | D52: 49 | E52: Telšių raj. | F52: 0.1070938853 | G52: 49 | H52: =IF(F52>0.3, J52/'3. GGbudget'!$I$11/1000*'2. Macro'!$N$38,0) -> 0 | I52: 46061.1 | J52: 45183.8 | K52: 877.3 | O52: 0 | P52: 0
B53: Trakų raj. | C53: 0.09480969966 | D53: 50 | E53: Trakų raj. | F53: 0.09480969966 | G53: 50 | H53: =IF(F53>0.3, J53/'3. GGbudget'!$I$11/1000*'2. Macro'!$N$38,0) -> 0 | I53: 43546.7 | J53: 40001 | K53: 3545.7 | O53: 0 | P53: 0
B54: Ukmergės raj. | C54: 0.09366442712 | D54: 51 | E54: Ukmergės raj. | F54: 0.09366442712 | G54: 51 | H54: =IF(F54>0.3, J54/'3. GGbudget'!$I$11/1000*'2. Macro'!$N$38,0) -> 0 | I54: 43659 | J54: 39517.8 | K54: 4141.2 | O54: 0 | P54: 0
B55: Utenos raj. | C55: 0.08461506752 | D55: 52 | E55: Utenos raj. | F55: 0.08461506752 | G55: 52 | H55: =IF(F55>0.3, J55/'3. GGbudget'!$I$11/1000*'2. Macro'!$N$38,0) -> 0 | I55: 36374.8 | J55: 35699.8 | K55: 675 | O55: 0 | P55: 0
B56: Varėnos raj. | C56: 0.06348701713 | D56: 53 | E56: Varėnos raj. | F56: 0.06348701713 | G56: 53 | H56: =IF(F56>0.3, J56/'3. GGbudget'!$I$11/1000*'2. Macro'!$N$38,0) -> 0 | I56: 28213.7 | J56: 26785.7 | K56: 1428 | O56: 0 | P56: 0
B57: Vilkaviškio raj. | C57: 0.08917269286 | D57: 54 | E57: Vilkaviškio raj. | F57: 0.08917269286 | G57: 54 | H57: =IF(F57>0.3, J57/'3. GGbudget'!$I$11/1000*'2. Macro'!$N$38,0) -> 0 | I57: 38837.2 | J57: 37622.7 | K57: 1214.5 | O57: =IF(H57>0,IF(N57/$G$68/10-H57*$G$70<-eps,1,0),IF(($G$70+eps>=0)*(N57<0),1,IF(($G$70+eps<0)*(J57/I57>1.015),1,0))) -> 0 | P57: 0
B58: Vilniaus raj. | C58: 0.2140789793 | D58: 55 | E58: Vilniaus raj. | F58: 0.2140789793 | G58: 55 | H58: =IF(F58>0.3, J58/'3. GGbudget'!$I$11/1000*'2. Macro'!$N$38,0) -> 0 | I58: 96319.9 | J58: 90321.7 | K58: 5998.2 | O58: 0 | P58: 0
B59: Zarasų raj. | C59: 0.04357842601 | D59: 56 | E59: Zarasų raj. | F59: 0.04357842601 | G59: 56 | H59: =IF(F59>0.3, J59/'3. GGbudget'!$I$11/1000*'2. Macro'!$N$38,0) -> 0 | I59: 19580.7 | J59: 18386.1 | K59: 1194.6 | O59: 0 | P59: 0
B60: Elektrėnų sav. | C60: 0.07015552766 | D60: 57 | E60: Elektrėnų sav. | F60: 0.07015552766 | G60: 57 | H60: =IF(F60>0.3, J60/'3. GGbudget'!$I$11/1000*'2. Macro'!$N$38,0) -> 0 | I60: 30087.9 | J60: 29599.2 | K60: 488.7 | O60: 0 | P60: 0
B61: Kalvarijos sav. | C61: 0.0270290956 | D61: 58 | E61: Kalvarijos sav. | F61: 0.0270290956 | G61: 58 | H61: =IF(F61>0.3, J61/'3. GGbudget'!$I$11/1000*'2. Macro'!$N$38,0) -> 0 | I61: 11672.8 | J61: 11403.8 | K61: 269 | O61: 0 | P61: 0
B62: Kazlų Rūdos sav. | C62: 0.02690157974 | D62: 59 | E62: Kazlų Rūdos sav. | F62: 0.02690157974 | G62: 59 | H62: =IF(F62>0.3, J62/'3. GGbudget'!$I$11/1000*'2. Macro'!$N$38,0) -> 0 | I62: 11908 | J62: 11350 | K62: 558 | O62: 0 | P62: 0
B63: Pagėgių sav. | C63: 0.02733390116 | D63: 60 | E63: Pagėgių sav. | F63: 0.02733390116 | G63: 60 | H63: =IF(F63>0.3, J63/'3. GGbudget'!$I$11/1000*'2. Macro'!$N$38,0) -> 0 | I63: 11986.9 | J63: 11532.4 | K63: 454.5 | O63: 0 | P63: 0
B64: Rietavo sav. | C64: 0.02330672282 | D64: 61 | E64: Rietavo sav. | F64: 0.02330672282 | G64: 61 | H64: =IF(F64>0.3, J64/'3. GGbudget'!$I$11/1000*'2. Macro'!$N$38,0) -> 0 | I64: 10331.6 | J64: 9833.3 | K64: 498.3 | O64: 0 | P64: 0
K65: T3 | O65: =SUMIF($H$5:$H$64,">0",O5:O64) -> 0 | P65: =SUMIF($H$5:$H$64,">0",P5:P64) -> 0
D66: t = | F66: t = | G66: =FirstYear + 7 -> 2018 | K66: T5 | O66: =SUMIF($H$5:$H$64,"=0",O6:O65) -> 0 | P66: =SUMIF($H$5:$H$64,"=0",P6:P65) -> 0
D67: YN*(t–1) = | F67: Y*(t–1) = | G67: =+'2. Macro'!M16 -> 35052.18069 | H67: =+'2. Macro'!M15 -> 35555.6797
D68: YN(t) = | F68: YN(t) = | G68: =+'2. Macro'!N8 -> 45133.55188 | H68: =+'2. Macro'!N7 -> 45133.55188
D69: YN(t–1) = | F69: YN(t–1) = | G69: ='2. Macro'!M8 -> 42190.83084 | H69: ='2. Macro'!M7 -> 42190.83084
D70: AP(t) = | F70: AP(t) = | G70: ='2. Macro'!N20 -> 2.923526894 | H70: ='2. Macro'!N19 -> 1.772171245
D71: Sources: | F71: Šaltiniai:
D72: Ministry of Finance | F72: Finansų ministerija | G72: FM
D73: Independent Fiscal Institution | F73: Fiskalinė institucija | G73: IFI

Sheet 5. SurplusGG
B1: ↖ atgal į turinį | G1: ↖ back to content
A2: =Kalba -> EN
B3: 5 lentelė. Perteklinio VS taisyklės sąlygos | G3: Table 4. Conditions of the surplus GG sector rule
B4: Nr. | C4: Sąlyga | D4: Formulė | E4: Išvada | G4: No. | H4: Condition | I4: Formula | J4: Conclusion
C5: Institucija, kurios projekcijų pagrindu atliekama analizė | E5: FM | F5: IFI | H5: Institution, projections of which are used for the analysis | J5: MoF | K5: IFI
B6: S1 | C6: VS yra faktiškai perteklinis t metais pagal struktūrinį balansą | D6: SB(t) > 0* | E6: =IF(J6,"Tiesa","Netiesa") -> Netiesa | F6: =IF(K6,"Tiesa","Netiesa") -> Tiesa | G6: C1 | H6: In terms of structural balance GG sector is actually in surplus | I6: SB(t) > 0* | J6: =IF(J19>eps,TRUE,FALSE) -> FALSE | K6: =IF(K19>eps,TRUE,FALSE) -> TRUE
E7: =CONCATENATE(TEXT(ROUND(J19,1),"0,0; –0,0"),IF(J6," ≥ "," < "),"0,1") -> 0,0 < 0,1 | F7: =CONCATENATE(TEXT(K19,"0,0; –0,0"),IF(K6," ≥ "," < "),"0,1") -> 0,0 ≥ 0,1 | J7: =CONCATENATE(TEXT(ROUND(J19,1),"0.0; –0.0"),IF(J6," ≥ "," < "),"0.1") -> 0.0 < 0.1 | K7: =CONCATENATE(TEXT(ROUND(K19,1),"0.0; –0.0"),IF(K6," ≥ "," < "),"0.1") -> 0.5 ≥ 0.1
B8: S2 | C8: Faktinio struktūrinio VS balanso rodiklio absoliučioji vertė yra mažesnė negu VLT absoliučioji vertė ir kiekvienais metais mažėja, išskyrus metus, kai produkcijos atotrūkio nuo potencialo rodiklis yra neigiamas | D8: |SB(t)| < |VLT| ir |SB(t)| < |SB(t–1)| ir AP(t) ≥ 0 | E8: =IF(J8,"Tiesa","Netiesa") -> Tiesa | F8: =IF(K8,"Tiesa","Netiesa") -> Netiesa | G8: C2 | H8: Actual structural GG sector balance indicator in absolute value is lower than MTO in absolute value and is annually decreasing, with the exception of the year when the output gap is negative | I8: |SB(t)| < |MTO| and |SB(t)| < |SB(t–1)| and OG(t) ≥ 0 | J8: =IF((J22>=-eps)*(ABS(J19)+eps<ABS($J$21))*(ABS(J19)<ABS(J20)),TRUE,FALSE) -> TRUE | K8: =IF((K22>=-eps)*(ABS(K19)+eps<ABS($J$21))*(ABS(K19)+0.1<ABS(K20)),TRUE,FALSE) -> FALSE
E9: =CONCATENATE(TEXT(ROUND(ABS(E19),1),"0,0; –0,0"),IF(ABS(E19)+eps<ABS($E$21)," < "," ≥ "),TEXT(ROUND(ABS(E21),1),"0,0; –0,0")," ir ",TEXT(ROUND(ABS(E19),2),"0,0; –0,0"),IF(ABS(E19)<ABS(E20)," < "," ≥ "),TEXT(ROUND(ABS(E20),2),"0,0; –0,0")," ir ",TEXT(ROUND(E22,1),"0,0; –0,0"),IF(E22<-eps," < "," ≥ "),"0,0") -> 0,0 < 0,1 ir 0,0 < 0,0 ir 0,3 ≥ 0,0 | F9: =CONCATENATE(TEXT(ROUND(ABS(F19),2),"0,0; –0,0"),IF(ABS(F19)+eps<ABS($E$21)," < "," ≥ "),TEXT(ROUND(ABS(E21),2),"0,0; –0,0")," ir ",TEXT(ROUND(ABS(F19),2),"0,0; –0,0"),IF(ABS(F19)+0.1<ABS(F20)," < "," ≥ "),TEXT(ROUND(ABS(F20),2),"0,0; –0,0")," ir ",TEXT(ROUND(F22,2),"0,0; –0,0"),IF(F22<-eps," < "," ≥ "),"0,0") -> 0,0 < 0,1 ir 0,0 ≥ 0,1 ir 0,2 ≥ 0,0 | J9: =CONCATENATE(TEXT(ROUND(ABS(J19),1),"0.0; –0.0"),IF(ABS(J19)+eps<ABS($J$21)," < "," ≥ "),TEXT(ROUND(ABS($J$21),1),"0.0; –0.0")," and ",TEXT(ROUND(ABS(J19),1),"0.0; –0.0"),IF(ABS(J19)<ABS(J20)," < "," ≥ "),TEXT(ROUND(ABS(J20),1),"0.0; –0.0")," and ",TEXT(ROUND(J22,1),"0.0; –0.0"),IF(J22<-eps," < "," ≥ "),"0.0") -> 0.0 < 1.0 and 0.0 < 0.1 and 2.9 ≥ 0.0 | K9: =CONCATENATE(TEXT(ROUND(ABS(K19),2),"0.0; –0.0"),IF(ABS(K19)+eps<ABS($J$21)," < "," ≥ "),TEXT(ROUND(ABS($J$21),2),"0.0; –0.0")," and ",TEXT(ROUND(ABS(K19),2),"0.0; –0.0"),IF(ABS(K19)+0.1<ABS(K20)," < "," ≥ "),TEXT(ROUND(ABS(K20),2),"0.0; –0.0")," and ",TEXT(ROUND(K22,2),"0.0; –0.0"),IF(K22<-eps," < "," ≥ "),"0.0") -> 0.5 < 1.0 and 0.5 ≥ 0.5 and 1.8 ≥ 0.0
B10: S3 | C10: Faktinio struktūrinio VS balanso rodiklio absoliučioji vertė yra mažesnė negu VLT absoliučioji vertė tais metais, kai produkcijos atotrūkio nuo potencialo rodiklis yra neigiamas | D10: |SB(t)| < |VLT| ir AP(t) < 0 | E10: =IF(J10,"Tiesa","Netiesa") -> Netiesa | F10: =IF(K10,"Tiesa","Netiesa") -> Netiesa | G10: C3 | H10: Actual structural GG sector balance indicator in absolute value is lower than the MTO in absolute value in the year when the output gap is negative | I10: |SB(t)| < |MTO| and OG(t) < 0 | J10: =IF((J22<-eps)*(ABS(J19)+eps<ABS($J$21)),TRUE,FALSE) -> FALSE | K10: =IF((K22<-eps)*(ABS(K19)+eps<ABS($J$21)),TRUE,FALSE) -> FALSE
E11: =CONCATENATE(TEXT(ROUND(ABS(E19),1),"0,0; –0,0"),IF(ABS(E19)+eps<ABS($E$21)," < "," ≥ "),TEXT(ROUND(ABS($E$21),1),"0,0; –0,0")," ir ",TEXT(ROUND(E22,1),"0,0; –0,0"),IF(E22<-eps," < "," ≥ "),"0,0") -> 0,0 < 0,1 ir 0,3 ≥ 0,0 | F11: =CONCATENATE(TEXT(ROUND(ABS(F19),1),"0,0; –0,0"),IF(ABS(F19)+eps<ABS($E$21)," < "," ≥ "),TEXT(ROUND(ABS($E$21),1),"0,0; –0,0")," ir ",TEXT(ROUND(F22,1),"0,0; –0,0"),IF(F22<-eps," < "," ≥ "),"0,0") -> 0,1 < 0,1 ir 0,2 ≥ 0,0 | J11: =CONCATENATE(TEXT(ROUND(ABS(J19),1),"0.0; –0.0"),IF(ABS(J19)+eps<ABS($J$21)," < "," ≥ "),TEXT(ROUND(ABS($J$21),1),"0.0; –0.0")," and ",TEXT(ROUND(J22,1),"0.0; –0.0"),IF(J22<-eps," < "," ≥ "),"0.0") -> 0.0 < 1.0 and 2.9 ≥ 0.0 | K11: =CONCATENATE(TEXT(ROUND(ABS(K19),1),"0.0; –0.0"),IF(ABS(K19)+eps<ABS($J$21)," < "," ≥ "),TEXT(ROUND(ABS($J$21),1),"0.0; –0.0")," and ",TEXT(ROUND(K22,1),"0.0; –0.0"),IF(K22<-eps," < "," ≥ "),"0.0") -> 0.5 < 1.0 and 1.8 ≥ 0.0
B12: S4 | C12: Faktinio struktūrinio VS balanso rodiklio postūmio VLT link absoliučioji vertė yra ne mažesnė negu struktūrinio postūmio užduoties absoliučioji vertė | D12: SPU(t) > 0 ir SB(t) ≥ SB(t–1)+SPU(t) | E12: =IF(J12,"Tiesa","Netiesa") -> Netiesa | F12: =IF(K12,"Tiesa","Netiesa") -> Netiesa | G12: C4 | H12: Actual structural GG sector balance indicator adjustment towards the MTO in absolute value is not lower than the structural adjustment target in absolute value. | I12: SAT(t) > 0 and SB(t) ≥ SB(t–1)+SAT(t) | J12: =IF(($J$23>0)*(J19>=J20+$J$23),TRUE,FALSE) -> FALSE | K12: =IF(($J$23>0)*(K19>=K20+$J$23),TRUE,FALSE) -> FALSE
E13: =IF($E$23=0,"Netaikoma",CONCATENATE(TEXT(ROUND(E19,1),"0,0; –0,0"),IF(E19>=E20+$E$23," ≥ "," < "),TEXT(ROUND(E20,1),"0,0; –0,0")," + ",TEXT(ROUND($E$23,1),"0,0; –0,0")," = ",TEXT(ROUND(J20+$E$23,1),"0,0; –0,0"))) -> Netaikoma | F13: =IF($E$23=0,"Netaikoma",CONCATENATE(TEXT(ROUND(F19,1),"0,0; –0,0"),IF(F19>=F20+$E$23," ≥ "," < "),TEXT(ROUND(F20,1),"0,0; –0,0")," + ",TEXT(ROUND($E$23,1),"0,0; –0,0")," = ",TEXT(ROUND(K20+$E$23,1),"0,0; –0,0"))) -> Netaikoma | J13: =IF($J$23=0,"Not aplicaple",CONCATENATE(TEXT(ROUND(J19,1),"0.0; –0.0"),IF(J19>=J20+$J$23," ≥ "," < "),TEXT(ROUND(J20,1),"0.0; –0.0")," + ",TEXT(ROUND($J$23,1),"0.0; –0.0")," = ",TEXT(ROUND(J20+$J$23,1),"0.0; –0.0"))) -> Not aplicaple | K13: =IF($J$23=0,"Not aplicaple",CONCATENATE(TEXT(ROUND(K19,1),"0.0; –0.0"),IF(K19>=K20+$J$23," ≥ "," < "),TEXT(ROUND(K20,1),"0.0; –0.0")," + ",TEXT(ROUND($J$23,1),"0.0; –0.0")," = ",TEXT(ROUND(K20+$J$23,1),"0.0; –0.0"))) -> Not aplicaple
B14: S | C14: t metais, išskyrus metus, kuriais susidaro išskirtinės aplinkybės, turi būti tenkinama bent viena iš S1–S4 sąlygų | E14: =IF(OR(J6,J8,J10,J12),"Taip","Ne") -> Taip | F14: =IF(OR(K6,K8,K10,K12),"Taip","Ne") -> Taip | G14: C | H14: At year t, with the exception of the year of exceptional circumstances, at least one of the C1–C4 conditions is satisfied | J14: =IF(E31>0,"Yes","No") -> Yes | K14: =IF(F31>0,"Yes","No") -> Yes
E15: =IF(J14="Yes",IF(E31=1,CONCATENATE("Tenkinama ",I27,I28,I29,I30," sąlyga"),CONCATENATE("Tenkinamos ", IF(E27=1,CONCATENATE(I27," "),""),IF(E28=1,CONCATENATE(I28," "),""),IF(E29=1,CONCATENATE(I29," "),""),IF(E30=1,CONCATENATE(I30," "),""),"sąlygos")),"Netenkinama nei viena iš sąlygų") -> Tenkinama S2 sąlyga | F15: =IF(K14="Yes",IF(F31=1,CONCATENATE("Tenkinama ",H27,H28,H29,H30," sąlyga"),CONCATENATE("Tenkinamos ", IF(F27=1,CONCATENATE(H27," "),""),IF(F28=1,CONCATENATE(H28," "),""),IF(F29=1,CONCATENATE(H29," "),""),IF(F30=1,CONCATENATE(H30," "),""),"sąlygos")),"Netenkinama nei viena iš sąlygų") -> Tenkinama S1 sąlyga | J15: =IF(J14="Yes",IF(E31=1,CONCATENATE("Condition ",J27,J28,J29,J30," is valid"),CONCATENATE("Conditions ", IF(E27=1,CONCATENATE(J27," "),""),IF(E28=1,CONCATENATE(J28," "),""),IF(E29=1,CONCATENATE(J29," "),""),IF(E30=1,CONCATENATE(J30," "),""),"are valid")),"None of the conditions is valid") -> Condition C2 is valid | K15: =IF(K14="Yes",IF(F31=1,CONCATENATE("Condition ",K27,K28,K29,K30," is valid"),CONCATENATE("Conditions ", IF(F27=1,CONCATENATE(K27," "),""),IF(F28=1,CONCATENATE(K28," "),""),IF(F29=1,CONCATENATE(K29," "),""),IF(F30=1,CONCATENATE(K30," "),""),"are valid")),"None of the conditions is valid") -> Condition C1 is valid
C16: * nelygybės ženklas yra griežtas, jei skirtumas tarp lyginamų pusių po apvalinimo sudaro bent 0,1, kitaip ženklas interpretuojamas kaip = | H16: * inequality sign is strict, if a difference between both compared sides after rounding is at least 0,1, else the sign is interpreted as =
C17: Šaltinis: KĮ 3 straipsnis 1 dalis | H17: Source: CL Article 3(1)
D18: t = | E18: 2018 | I18: t = | J18: =E18 -> 2018
D19: SB(t) = | E19: ='3. GGbudget'!H19 -> 0.008398718379 | F19: ='3. GGbudget'!L19 -> 0.4677896222 | I19: SB(t) = | J19: =E19 -> 0.008398718379 | K19: =F19 -> 0.4677896222
D20: SB(t–1) = | E20: ='3. GGbudget'!F19 -> -0.07369401054 | F20: ='3. GGbudget'!J19 -> 0.5059563424 | I20: SB(t–1) = | J20: -0.07369401054 | K20: =F20 -> 0.5059563424
D21: VLT = | E21: ='3. GGbudget'!H22 -> -1 | I21: MTO = | J21: -1
D22: AP(t) = | E22: ='2. Macro'!N20 -> 2.923526894 | F22: ='2. Macro'!N19 -> 1.772171245 | I22: OG(t) = | J22: 2.923526894 | K22: =F22 -> 1.772171245
D23: SPU(t) = | E23: ='3. GGbudget'!H23 -> 0 | I23: SAT(t) = | J23: 0
D24: Šaltiniai: | I24: Sources:
D25: Finansų ministerija | E25: FM | I25: Ministry of Finance | J25: MoF
D26: Fiskalinė institucija | E26: IFI | I26: Independent Fiscal Institution | J26: IFI
C27: S1 | D27: C1 | E27: =J6*1 -> 0 | F27: =(K6)*1 -> 1 | G27: =IF(#REF!=1,$C27,"") ->  | H27: =IF(F27=1,$C27,"") -> S1 | I27: =IF(E27=1,$C27,"") ->  | J27: =IF(E27=1,$D27,"") ->  | K27: C1
C28: S2 | D28: C2 | E28: =J8*1 -> 1 | F28: =(K8)*1 -> 0 | G28: =IF(#REF!=1,$C28,"") ->  | H28: =IF(F28=1,$C28,"") ->  | I28: =IF(E28=1,$C28,"") -> S2 | J28: C2
C29: S3 | D29: C3 | E29: =J10*1 -> 0 | F29: =(K10)*1 -> 0 | G29: =IF(#REF!=1,$C29,"") ->  | H29: =IF(F29=1,$C29,"") ->  | I29: =IF(E29=1,$C29,"") -> 
C30: S4 | D30: C4 | E30: =J12*1 -> 0 | F30: =(K12)*1 -> 0 | G30: =IF(#REF!=1,$C30,"") ->  | H30: =IF(F30=1,$C30,"") ->  | I30: =IF(E30=1,$C30,"") -> 
E31: =SUM(E27:E30) -> 1 | F31: =SUM(F27:F30) -> 1

Sheet 6. GGexpenditure
B1: ↖ atgal į turinį | H1: ↖ back to content
A2: =Kalba -> EN
B3: 6 lentelė. VS išlaidų augimo ribojimo taisyklė | H3: Table 5. GG expenditure growth limiting rule
B4: Nr. | C4: VS išlaidų augimo ribojimo taisyklės netaikymo aplinkybės | D4: Formulė | F4: Išvada | H4: No. | I4: GG expenditure growh limiting rule application escape clause | J4: Formula | L4: Conclusion
C5: Institucija, kurios projekcijų pagrindu atliekama analizė | F5: FM | G5: IFI | I5: Institution, projections of which are used for the analysis | L5: MoF | M5: IFI
B6: A1 | C6: Pagal 4 paskutinius metų ketvirčius apskaičiuotas Lietuvos BVP to meto kainomis augimas yra mažesnis negu daugiametis ES BVP to meto kainomis augimas, padidintas 2 procentiniais punktais | F6: =IF(L6,"Tiesa","Netiesa") -> Netiesa | G6: =IF(M6,"Tiesa","Netiesa") -> Netiesa | H6: E1 | I6: Lithuanian GDP at current prices calculated on the basis of 4 last quarters of the year grows at a slower pace than the multi-annual growth of the GDP of the EU at current prices increased by 2 percentage points | L6: =IF('6. GGexpenditure'!L44+eps<AVERAGE('2. Macro'!I33:M33)+2,TRUE,FALSE) -> FALSE | M6: =IF('6. GGexpenditure'!M44+eps<AVERAGE('2. Macro'!I33:M33)+2,TRUE,FALSE) -> FALSE
F7: =CONCATENATE(TEXT(ROUND('6. GGexpenditure'!L44,1),"0,0;–0,0"),IF(L6," < "," ≥ "),TEXT(ROUND(AVERAGE('2. Macro'!H33:L33)+2,1),"0,0;–0,0")) -> 0,6 ≥ 0,5 | G7: =CONCATENATE(TEXT(ROUND('6. GGexpenditure'!M44,1),"0,0;–0,0"),IF(M6," < "," ≥ "),TEXT(ROUND(AVERAGE('2. Macro'!H33:L33)+2,1),"0,0;–0,0")) -> 0,6 ≥ 0,5 | L7: =CONCATENATE(TEXT(ROUND('6. GGexpenditure'!L44,1),"0.0;–0.0"),IF(L6," < "," ≥ "),TEXT(ROUND(AVERAGE('2. Macro'!I33:M33)+2,1),"0.0;–0.0")) -> 6.1 ≥ 4.7 | M7: =CONCATENATE(TEXT(ROUND('6. GGexpenditure'!M44,1),"0.0;–0.0"),IF(M6," < "," ≥ "),TEXT(ROUND(AVERAGE('2. Macro'!I33:M33)+2,1),"0.0;–0.0")) -> 6.1 ≥ 4.7
B8: A2* | C8: A2, kai numatomas einamųjų metų VS balanso rodiklio teigiamas postūmis nėra mažesnis už suplanuotą einamųjų kalendorinių metų VS balanso rodiklio teigiamą postūmį daugiau kaip 0,5 procentinio punkto BVP to meto kainomis | D8: B(t) ≥ B(t–1)+1 ir B(t–1)–B(t–2) ≥ BP(t–1)–BP(t–2)+0,5 | F8: =IF(L8,"Tiesa","Netiesa") -> Netiesa | G8: =IF(M8,"Tiesa","Netiesa") -> Netiesa | H8: E2* | I8: E2, when projected current year GG sector balance indicator positive adjustment is not greater than planned current year GG positive adjustment more than by 0,5 % of GDP at current prices | J8: B(t) ≥ B(t–1)+1 and B(t–1)–B(t–2) ≥ BP(t–1)–BP(t–2)+0,5 | L8: =IF('[1]3. GGbudget'!G7>='[1]3. GGbudget'!F7+1,TRUE,FALSE) -> FALSE | M8: =IF('[1]3. GGbudget'!K7>='[1]3. GGbudget'!J7+1,TRUE,FALSE) -> FALSE
F9: =CONCATENATE(TEXT(ROUND('3. GGbudget'!H7,1),"0,0;–0,0"),IF(('3. GGbudget'!H7>='3. GGbudget'!F7+1)," ≥ "," < "),TEXT(ROUND('3. GGbudget'!F7+1,1),"0,0;–0,0")," ir ",TEXT(ROUND(F38,1),"0,0;–0,0"),IF(F38-F39>=0.5," ≥ "," < "),TEXT(ROUND(F39+0.5,1),"0,0;–0,0")) -> 0,1 < 0,2 ir 0,0 < 0,1 | G9: =CONCATENATE(TEXT(ROUND('3. GGbudget'!L7,1),"0,0;–0,0"),IF(('3. GGbudget'!L7>='3. GGbudget'!J7+1)," ≥ "," < "),TEXT(ROUND('3. GGbudget'!J7+1,1),"0,0;–0,0")," ir ",TEXT(ROUND(G38,1),"0,0;–0,0"),IF(G38-G39>=0.5," ≥ "," < "),TEXT(ROUND(G39+0.5,1),"0,0;–0,0")) -> 0,1 < 0,2 ir 0,0 < 0,1 | L9: =CONCATENATE(TEXT(ROUND('3. GGbudget'!K7,1),"0.0;–0.0"),IF(('3. GGbudget'!K7>='3. GGbudget'!J7+1)," ≥ "," < "),TEXT(ROUND('3. GGbudget'!J7+1,1),"0.0;–0.0")," and ",TEXT(ROUND(M38,1),"0.0;–0.0"),IF(M38-M39>=0.5," ≥ "," < "),TEXT(ROUND(M39+0.5,1),"0.0;–0.0")) -> 205.2 ≥ 1.5 and 0.2 < 1.0 | M9: =CONCATENATE(TEXT(ROUND('3. GGbudget'!K7,1),"0.0;–0.0"),IF(('3. GGbudget'!K7>='3. GGbudget'!J7+1)," ≥ "," < "),TEXT(ROUND('3. GGbudget'!J7+1,1),"0.0;–0.0")," and ",TEXT(ROUND(M38,1),"0.0;–0.0"),IF(M38-M39>=0.5," ≥ "," < "),TEXT(ROUND(M39+0.5,1),"0.0;–0.0")) -> 205.2 ≥ 1.5 and 0.2 < 1.0
B10: A2 | C10: Numatomas VS balanso rodiklio postūmis yra teigiamas ir sudaro bent 1,0 procentinį punktą BVP | D10: B(t) ≥ B(t–1)+1 | F10: =IF(L10,"Tiesa","Netiesa") -> Tiesa | G10: =IF(M10,"Tiesa","Netiesa") -> Netiesa | H10: E2 | I10: Projected GG sector balance indicator adjustment is positive and makes up at least 1.0 percentage point of GDP | J10: B(t) ≥ B(t–1)+1 | L10: =IF('3. GGbudget'!H7>=-0.4+1,TRUE,FALSE) -> TRUE | M10: =IF('3. GGbudget'!L7>='3. GGbudget'!J7+1,TRUE,FALSE) -> FALSE
F11: =CONCATENATE(TEXT(ROUND('3. GGbudget'!H7+0.4,1),"0,0;–0,0"),IF(L10," ≥ "," < "),TEXT(ROUND(1,1),"0,0;–0,0")) -> 0,1 ≥ 0,1 | G11: =CONCATENATE(TEXT(ROUND('3. GGbudget'!L7-'3. GGbudget'!J7,1),"0,0;–0,0"),IF(M10," ≥ "," < "),TEXT(ROUND(1,1),"0,0;–0,0")) -> 0,0 < 0,1 | L11: =CONCATENATE(TEXT(ROUND('3. GGbudget'!H7+0.4,1),"0.0;–0.0"),IF(L10," ≥ "," < "),TEXT(ROUND(1,1),"0.0;–0.0")) -> 1.1 ≥ 1.0 | M11: =CONCATENATE(TEXT(ROUND('3. GGbudget'!L7-'3. GGbudget'!J7,1),"0.0;–0.0"),IF(M10," ≥ "," < "),TEXT(ROUND(1,1),"0.0;–0.0")) -> 0.2 < 1.0
B12: A3 | C12: Ne mažiau kaip penkerių iš eilės einančių metų VS balanso rodiklio aritmetinis vidurkis yra perteklius, ne mažesnis negu 0,1 procento BVP | F12: =IF(L12,"Tiesa","Netiesa") -> Tiesa | G12: =IF(M12,"Tiesa","Netiesa") -> Netiesa | H12: E3 | I12: The arithmetic average of GG sector balance indicator of at least five successive years is in surplus, at least 0.1 % of GDP | L12: =IF(ROUND(AVERAGE('2. Macro'!J37:N37),1)>=0.1,TRUE,FALSE) -> TRUE | M12: =IF(ROUND(AVERAGE('2. Macro'!I36:M36),1)>=0.1,TRUE,FALSE) -> FALSE
F13: =CONCATENATE(TEXT(ROUND(AVERAGE('2. Macro'!J37:N37),1),"0,0;–0,0"),IF(L12," ≥ "," < "),"0,1") -> 0,0 ≥ 0,1 | G13: =CONCATENATE(TEXT(ROUND(AVERAGE('2. Macro'!I36:M36),1),"0,0;–0,0"),IF(M12," ≥ "," < "),"0,1") -> –0,1 < 0,1 | L13: =CONCATENATE(TEXT(ROUND(AVERAGE('2. Macro'!J37:N37),1),"0.0;–0.0"),IF(L12," ≥ "," < "),"0.1") -> 0.1 ≥ 0.1 | M13: =CONCATENATE(TEXT(ROUND(AVERAGE('2. Macro'!I36:M36),1),"0.0;–0.0"),IF(M12," ≥ "," < "),"0.1") -> –0.6 < 0.1
B14: A4 | C14: Keičiant einamųjų metų bet kurio iš VS priskiriamų biudžetų, kurių kiekvieno atskirai planuojami asignavimai viršija 3 procentus BVP to meto kainomis, pajamas ar išlaidas, pakeistas VS balansas nepablogės, palyginti su buvusiu prieš keitimą | D14: B**(t–1) ≥ B(t–1) | F14: Netaikoma | G14: =F14 -> Netaikoma | H14: E4 | I14: If planned current year GG sector budgets, the planned appropriations of each of which exceed 3 % of GDP at current prices, are subject to amendment, the adjusted aggregate balances of the GG budgets is not worse than the one before the amendment | J14: B**(t–1) ≥ B(t–1) | L14: Not applied | M14: =L14 -> Not applied
B15: A5 | C15: Pagal Vyriausybės arba jos įgaliotos institucijos viešai paskelbtą ekonominės raidos scenarijų, dėl kurio tvirtinimo kontrolės institucija paskelbė išvadą, apskaičiuotas produkcijos atotrūkis nuo potencialo planuojamais metais yra neigiamas | D15: AP(t) < 0 | F15: =IF(L15,"Tiesa","Netiesa") -> Netiesa | G15: =IF(M15,"Tiesa","Netiesa") -> Netiesa | H15: E5 | I15: The output gap for the planned year calculated on the basis of the economic development scenario, which is made public by the Government or its authorised institution and in regard to which the monitoring authority published its conclusion, is negative | J15: OG(t) < 0 | L15: =IF(L45+eps<0,TRUE,FALSE) -> FALSE | M15: =IF(M45+eps<0,TRUE,FALSE) -> FALSE
F16: =CONCATENATE(TEXT(ROUND(L45,1),"0,0;–0,0"),IF(L15," < "," ≥ "),FIXED(0,1)) -> 0,3 ≥ 0.0 | G16: =CONCATENATE(TEXT(ROUND(M45,1),"0,0;–0,0"),IF(M15," < "," ≥ "),FIXED(0,1)) -> 0,2 ≥ 0.0 | L16: =CONCATENATE(TEXT(ROUND(L45,1),"0.0;–0.0"),IF(L15," < "," ≥ "),FIXED(0,1)) -> 2.9 ≥ 0.0 | M16: =CONCATENATE(TEXT(ROUND(M45,1),"0.0;–0.0"),IF(M15," < "," ≥ "),FIXED(0,1)) -> 1.8 ≥ 0.0
B17: A5* | C17: A5, o prognozuojama vidutinė metinė infliacija, apskaičiuojama pagal suderintą vartotojų kainų indeksą, neviršija 3 procentų | D17: AP(t) < 0 ir ΔSVKI(t) ≤ 3 | F17: =IF(L17,"Tiesa","Netiesa") -> Netiesa | G17: =IF(M17,"Tiesa","Netiesa") -> Netiesa | H17: E5* | I17: E5, and project annual inflation, estimated by harmonised index of consumer prices is not greater that 3 % | J17: OG(t) < 0 and ΔHICP(t) ≤ 3 | L17: =IF((F45+eps<0)*($F$46<=3),TRUE,FALSE) -> FALSE | M17: =IF((G45+eps<0)*($F$46<=3),TRUE,FALSE) -> FALSE
F18: =CONCATENATE(TEXT(ROUND(L45,1),"0,0;–0,0"),IF(L15," < "," ≥ "),FIXED(0,1), " ir ", TEXT(ROUND($L$46,1),"0,0;–0,0"),IF(L46<=3," ≤ "," > "), FIXED(3,1)) -> 0,3 ≥ 0.0 ir 0,3 ≤ 3.0 | G18: =CONCATENATE(TEXT(ROUND(M45,1),"0,0;–0,0"),IF(M15," < "," ≥ "),FIXED(0,1), " ir ", TEXT(ROUND($L$46,1),"0,0;–0,0"),IF(L46<=3," ≤ "," > "), FIXED(3,1)) -> 0,2 ≥ 0.0 ir 0,3 ≤ 3.0 | L18: =CONCATENATE(TEXT(ROUND(L45,1),"0.0;–0.0"),IF($L$15," < "," ≥ "),FIXED(0,1), " and ", TEXT(ROUND($L$46,1),"0.0;–0.0"),IF(L46<=3," ≤ "," > "), FIXED(3,1)) -> 2.9 ≥ 0.0 and 2.5 ≤ 3.0 | M18: =CONCATENATE(TEXT(ROUND(M45,1),"0.0;–0.0"),IF($L$15," < "," ≥ "),FIXED(0,1), " and ", TEXT(ROUND($L$46,1),"0.0;–0.0"),IF(L46<=3," ≤ "," > "), FIXED(3,1)) -> 1.8 ≥ 0.0 and 2.5 ≤ 3.0
B19: A | C19: t metais, VS išlaidų augimo ribojimo taisyklė netaikoma, kai susidaro bent viena iš A1–A5 aplinkybių | F19: =IF(L19="yes","Taip","Ne") -> Taip | G19: =IF(M19="yes","Taip","Ne") -> Ne | H19: E | I19: at year t the GG expenditure growth limiting rule is not applied when at least one of the E1–E5 escape clauses emerges | L19: =+IF((OR(L6=TRUE,L10=TRUE,L12=TRUE,L14=TRUE,L15=TRUE)),"Yes","No") -> Yes | M19: =+IF((OR(M6=TRUE,M10=TRUE,M12=TRUE,M14=TRUE,M15=TRUE)),"Yes","No") -> No
F20: =IF(F19="TAIP",IF(F60=1,CONCATENATE("Susidaro ",H55,H56,H57,H58,H59," aplinkybė"),CONCATENATE("Susidaro ", IF(F55=1,CONCATENATE(H55," "),""),IF(F56=1,CONCATENATE(H56," "),""),IF(F57=1,CONCATENATE(H57," "),""),IF(F58=1,CONCATENATE(H58," "),""),IF(F59=1,CONCATENATE(H59," "),""),"aplinkybės")),"Išimčių nėra") -> Susidaro A2 aplinkybės | G20: =IF(G19="TAIP",IF(G60=1,CONCATENATE("Susidaro ",I55,I56,I57,I58,I59," aplinkybė"),CONCATENATE("Susidaro ", IF(G55=1,CONCATENATE(I55," "),""),IF(G56=1,CONCATENATE(I56," "),""),IF(G57=1,CONCATENATE(I57," "),""),IF(G58=1,CONCATENATE(I58," "),""),IF(G59=1,CONCATENATE(I59," "),""),"aplinkybės")),"Išimčių nėra") -> Išimčių nėra | L20: =IF(L19="YES",IF(F60=1,CONCATENATE("Escape clause ",J55,J56,J57,J58,J59," emerges"),CONCATENATE("Escape clauses ", IF(F55=1,CONCATENATE(J55," "),""),IF(F56=1,CONCATENATE(J56," "),""),IF(F57=1,CONCATENATE(J57," "),""),IF(F58=1,CONCATENATE(J58," "),""),IF(F59=1,CONCATENATE(J59," "),""),"emerge") ),"There is no escape clauses") -> Escape clauses E2 emerge | M20: =IF(M19="YES",IF(G60=1,CONCATENATE("Escape clause ",K55,K56,K57,K58,K59," emerges"),CONCATENATE("Escape clauses ", IF(G55=1,CONCATENATE(K55," "),""),IF(G56=1,CONCATENATE(K56," "),""),IF(G57=1,CONCATENATE(K57," "),""),IF(G58=1,CONCATENATE(K58," "),""),IF(G59=1,CONCATENATE(K59," "),""),"emerge") ),"There is no escape clauses") -> There is no escape clauses
B21: Nr. | C21: Taisyklė | D21: Formulė | F21: Išvada | H21: No. | I21: Rule | J21: Formula | L21: Conclusion
B22: T1 | C22: Metais t rengiant, tvirtinant ir keičiant VS priskiriamų biudžetų, kurių kiekvieno atskirai planuojami asignavimai viršija 3 proc. BVP to meto kainomis (CV, VSDF ir PSDF išlaidos), patvirtinimo įstatymų arba šių įstatymų pakeitimo įstatymų projektus, vadovaujamasi nuostata, kad tuo atveju, kai paskutinių penkerių pasibaigusių metų VS balanso rodiklių aritmetinis vidurkis yra neigiamas, šių biudžetų asignavimų (išskyrus ES finansinės paramos lėšas) visumos augimas turi būti ne didesnis negu 0,5 potencialaus BVP to meto kainomis daugiamečio augimo vidurkio | D22: Jei | F22: =IF((L19="YES"),"",IF(L22,"Tiesa","Netiesa")) ->  | G22: =IF((M19="YES"),"",IF(M22,"Tiesa","Netiesa")) -> Tiesa | H22: R1 | I22: At year t the preparation, approval and amendment of draft laws or their draft amending laws on approval of the budgets attributable to the GG sector the planned appropriations of each of which exceed 3 % of GDP (CG and SSF expenditure) at current prices shall rely on the provision that, in case where arithmetic average of GG sector balance indicators of the past five complete years is negative, the aggregate growth of the appropriations of these budgets (net of EU financial support) is not higher than 0.5 % of the average multi-annual growth rate of the potential GDP at current prices | J22: If | L22: =IF((L19="YES"),"",IF(AVERAGE('2. Macro'!I37:M37)+eps<0,TRUE,FALSE)) ->  | M22: =IF((M19="YES"),"",IF(AVERAGE('2. Macro'!I36:M36)+eps<0,TRUE,FALSE)) -> TRUE
F23: =IF((L19="YES"),"",CONCATENATE(TEXT(ROUND(AVERAGE('2. Macro'!H37:L37),1),"0,0;–0,0"),IF(L12," ≥ "," < "),FIXED(0,1))) ->  | G23: =IF((M19="YES"),"",CONCATENATE(TEXT(ROUND(AVERAGE('2. Macro'!H37:L37),1),"0,0;–0,0"),IF(M12," ≥ "," < "),FIXED(0,1))) -> –0,1 < 0.0 | L23: =IF((L19="YES"),"",CONCATENATE(TEXT(ROUND(AVERAGE('2. Macro'!I37:M37),1),"0.0;–0.0"),IF(L12," ≥ "," < "),FIXED(0,1))) ->  | M23: =IF((M19="YES"),"",CONCATENATE(TEXT(ROUND(AVERAGE('2. Macro'!H36:L36),1),"0.0;–0.0"),IF(M12," ≥ "," < "),FIXED(0,1))) -> –1.3 < 0.0
F24: =L24 ->  | G24: =M24 -> 0.06271337117 | L24: =IF(L19="YES","",POWER('2. Macro'!R16/'2. Macro'!G16,0.1)*POWER(PRODUCT(F40:F43),0.25)-1) ->  | M24: =IF(M19="YES","",POWER('2. Macro'!R15/'2. Macro'!G15,0.1)*POWER(PRODUCT(F40:F43),0.25)-1) -> 0.06271337117
F25: =IF(F19="TAIP","Netaikoma,",IF(L25,"Tiesa","Netiesa")) -> Netaikoma, | G25: =IF(G19="TAIP","Netaikoma,",IF(M25,"Tiesa","Netiesa")) -> Netiesa | L25: =IF(L19="YES","Not applied,",IF($F$32-$F$34<=($F$33-$F$35)*(1+0.5*L24),TRUE,FALSE)) -> Not applied, | M25: =IF(M19="YES","Not applied,",IF($G$32-$F$34<=($G$33-$F$35)*(1+0.5*M24),TRUE,FALSE)) -> FALSE
F26: =IF(L19="YES"," nes susidarė viena iš KĮ numatytų netaikymo aplinkybių",CONCATENATE(ROUND(($F$32-F34)/($F$33-F35),3),IF(L25," ≤ "," > "), ROUND(1+0.5*L24,3))) -> nes susidarė viena iš KĮ numatytų netaikymo aplinkybių | G26: =IF(M19="YES"," nes susidarė viena iš KĮ numatytų netaikymo aplinkybių",CONCATENATE(ROUND(($G$32-F34)/($G$33-F35),3),IF(M25," ≤ "," > "), ROUND(1+0.5*M24,3))) -> 1.082 > 1.031 | L26: =IF(L19="YES"," since one of CL escape clauses emerged",CONCATENATE(ROUND(($F$32-F34)/($F$33-F35),3),IF(L25," ≤ "," > "), ROUND(1+0.5*L24,3))) -> since one of CL escape clauses emerged | M26: =IF(M19="YES"," since one of CL escape clauses emerged",CONCATENATE(ROUND(($G$32-F34)/($G$33-F35),3),IF(M25," ≤ "," > "), ROUND(1+0.5*M24,3))) -> 1.082 > 1.031
B27: T2 | C27: Pagal FDĮ panaši į T1 išlaidų ribojimo taisyklė turi būti pritaikyta visam konsoliduotam VS biudžetui (be Europos Sąjungos finansinės paramos lėšų) | F27: =IF(F19="TAIP","Netaikoma,",IF(L27,"Tiesa","Netiesa")) -> Netaikoma, | G27: =IF(G19="TAIP","Netaikoma,",IF(M27,"Tiesa","Netiesa")) -> Netiesa | H27: R2 | I27: According to FDL a similar to R1 GG consolidated budget's expenditure growth rule is applied (net of EU financial support) | L27: =IF(L19="YES","Not applied,",IF($F$36-$F$34<=($F$37-$F$35)*(1+0.5*L24),TRUE,FALSE)) -> Not applied, | M27: =IF(M19="YES","Not applied,",IF($F$36-$F$34<=($F$37-$F$35)*(1+0.5*M24),TRUE,FALSE)) -> FALSE
F28: =IF(L19="YES"," nes susidarė viena iš FDĮ numatytų netaikymo aplinkybių",CONCATENATE(ROUND(($F$36-$F$34)/($F$37-$F$35),3),IF(L25," ≤ "," > "), ROUND(1+0.5*L24,3))) -> nes susidarė viena iš FDĮ numatytų netaikymo aplinkybių | G28: =IF(M19="YES"," nes susidarė viena iš FDĮ numatytų netaikymo aplinkybių",CONCATENATE(ROUND(($G$36-$F$34)/($G$37-$F$35),3),IF(M25," ≤ "," > "), ROUND(1+0.5*M24,3))) -> 1.088 > 1.031 | L28: =IF(L19="YES"," since one of FDL escape clauses emerged",CONCATENATE(ROUND(($F$36-$F$34)/($F$37-$F$35),3),IF(L25," ≤ "," > "), ROUND(1+0.5*L24,3))) -> since one of FDL escape clauses emerged | M28: =IF(M19="YES"," since one of FDL escape clauses emerged",CONCATENATE(ROUND(($G$36-$F$34)/($G$37-$F$35),3),IF(M25," ≤ "," > "), ROUND(1+0.5*M24,3))) -> 1.088 > 1.031
C29: * nelygybės ženklas yra griežtas, jei skirtumas tarp lyginamų pusių po apvalinimo sudaro bent 0,1, kitaip ženklas interpretuojamas kaip = ** einamaisiais metais keičiamas VS balansas | I29: * inequality sign is strict, if a difference between both compared sides after rounding is at least 0,1, else the sign is interpreted as = ** the adjusted aggregate balances of the GG budgets
C30: Šaltiniai: KĮ 3 straipsnis 3 dalis, taisyklės pažymėtos * FDĮ 2-3 straipsniai | I30: Source: CL Article 3(3), rules denoted by * FDL Articles 2 and 3
E31: t = | F31: 2018 | K31: t = | L31: =F31 -> 2018
E32: AV3(t) = | F32: ='3. GGbudget'!I14 -> 13965.20522 | G32: ='3. GGbudget'!M14 -> 13965.20522 | K32: AG3(t) = | L32: 13965.20522 | M32: =G32 -> 13965.20522
E33: AV3(t–1) = | F33: ='3. GGbudget'!G14 -> 12767.03909 | G33: ='3. GGbudget'!K14 -> 12767.03909 | K33: AG3(t–1) = | L33: 12767.03909 | M33: =G33 -> 12767.03909
E34: ES(t) = | F34: 1560.9016 | K34: EU(t) = | L34: 1560.9016
E35: ES(t–1) = | F35: 1297.662 | K35: EU(t–1) = | L35: 1297.662
E36: VI(t) = | F36: ='3. GGbudget'!I11 -> 15342.7585 | G36: ='3. GGbudget'!M11 -> 15342.7585 | K36: TE(t) = | L36: 15342.7585 | M36: =G36 -> 15342.7585 | O36: =O34-N33 -> 0
E37: VI(t–1) = | F37: ='3. GGbudget'!G11 -> 13960.70991 | G37: ='3. GGbudget'!K11 -> 13960.70991 | K37: TE(t–1) = | L37: 13960.70991 | M37: =G37 -> 13960.70991 | O37: =N32-N33 -> 0
E38: B(t–1)–B(t–2) = | F38: =+'2. Macro'!M37-'2. Macro'!L37 -> 0.2436062669 | G38: =+'2. Macro'!M36-'2. Macro'!L36 -> 0.2446592262 | K38: B(t–1)–B(t–2) = | L38: 0.2436062669 | M38: =G38 -> 0.2446592262 | O38: =O37-O36 -> 0
E39: BP(t–1)–BP(t–2) = | F39: =+('2. Macro'!M37-'2. Macro'!L37)-('2. Macro'!L37-'2. Macro'!M37) -> 0.4872125338 | G39: =+('2. Macro'!M36-'2. Macro'!L36)-('2. Macro'!L36-'2. Macro'!M36) -> 0.4893184523 | K39: BP(t–1)–BP(t–2) = | L39: 0.4872125338 | M39: =G39 -> 0.4893184523
E40: PY1(t)/PY1(t–1) = | F40: =1.21330007555463/1.17327404823619 -> 1.034114815 | K40: PY1(t)/PY1(t–1) = | L40: 1.034114815
E41: PY2(t)/PY2(t–1) = | F41: =1.21330007555463/1.17327404823619 -> 1.034114815 | K41: PY2(t)/PY2(t–1) = | L41: 1.034114815
E42: PY3(t)/PY3(t–1) = | F42: =1.21330007555463/1.17327404823619 -> 1.034114815 | K42: PY3(t)/PY3(t–1) = | L42: 1.034114815
E43: PY4(t)/PY4(t–1) = | F43: =1.21330007555463/1.17327404823619 -> 1.034114815 | K43: PY4(t)/PY4(t–1) = | L43: 1.034114815
C44: 2016K3-2017K2 | E44: ΔYN(t–1) = | F44: 6.1 | G44: 6.1 | I44: 2016Q3-2017Q2 | K44: ΔYN(t–1) = | L44: =F44 -> 6.1 | M44: =G44 -> 6.1
E45: AP(t) = | F45: ='2. Macro'!N20 -> 2.923526894 | G45: ='2. Macro'!N19 -> 1.772171245 | K45: OG(t) = | L45: 2.923526894 | M45: =G45 -> 1.772171245
E46: ΔSVKI(t) = | F46: ='2. Macro'!N31 -> 2.5 | K46: ΔHICP(t) = | L46: 2.5
E47: AV3(t)–ES(t)= | F47: =+F32-F34 -> 12404.30362 | G47: =+G32-F34 -> 12404.30362 | K47: AG3(t)–EU(t)= | L47: =+F47 -> 12404.30362 | M47: 12404.30362
E48: AV3(t–1)–ES(t–1)= | F48: =+F33-F35 -> 11469.37709 | G48: =+G33-F35 -> 11469.37709 | K48: AG3(t–1)–EU(t–1)= | L48: 11469.37709 | M48: 11469.37709
E49: (AV3(t)-ES(t))/(AV3(t-1)-ES(t-1))= | F49: =+(F47/F48-1)*100 -> 8.151502265 | G49: =+(G47/G48-1)*100 -> 8.151502265 | K49: (AG3(t)-EU(t))/(AG3(t-1)-EU(t-1))= | L49: 8.151502265 | M49: 8.151502265
E50: Ynp10t | F50: =(POWER('2. Macro'!R16/'2. Macro'!G16,0.1)*POWER(PRODUCT(F40:F43),0.25)-1) -> 0.06272737772 | G50: =(POWER('2. Macro'!R15/'2. Macro'!G15,0.1)*POWER(PRODUCT(F40:F43),0.25)-1) -> 0.06271337117 | K50: Ynp10t | L50: =+F50 -> 0.06272737772 | M50: =+G50 -> 0.06271337117
E51: Šaltiniai: | K51: Sources:
E52: Finansų ministerija | F52: FM | K52: Ministry of Finance | L52: MoF
E53: Fiskalinė institucija | F53: IFI | K53: Independent Fiscal Institution | L53: IFI
E54: Europos Komisija | F54: EK | K54: European Commission | L54: EC
D55: A1 | E55: E1 | F55: =(L6)*1 -> 0 | G55: =(M6)*1 -> 0 | H55: =IF(F55=1,$D55,"") ->  | J55: =IF(F55=1,$E55,"") -> 
D56: A2 | E56: E2 | F56: =(L10)*1 -> 1 | G56: =(M10)*1 -> 0 | H56: A2 | J56: E2
D57: A3 | E57: E3
D58: A4 | E58: E4
D59: A5 | E59: E5

Sheet 7. GGbudgets
B1: ↖ atgal į turinį | G1: ↖ back to content
A2: =Kalba -> EN
B3: 7 lentelė. VS priskiriamų biudžetų taisyklės | G3: Table 7. Rules for the budgets attributable to GG sector
B4: Nr. | C4: Taisyklė | D4: Formulė | E4: Išvada | G4: No. | H4: Rule | I4: Formula | J4: Conclusion
C5: Institucija, kurios projekcijų pagrindu atliekama analizė | E5: FM | F5: IFI | H5: Institution, projections of which are used for the analysis | J5: MoF | K5: IFI
B6: T31 | C6: Nuo 2018 m. sausio 1 d. kiekvienas j-asis vietos valdžios sektoriui priskiriamas biudžetas, kurio asignavimai viršija 0,3 procentą praėjusių metų BVP to meto kainomis, turi būti planuojamas, tvirtinamas, keičiamas ir vykdomas taip, kad, sprendžiant pagal to biudžeto struktūrinį balanso rodiklį, apskaičiuotą kaupiamuoju principu, jis būtų perteklinis arba subalansuotas | D6: t ≥ 2018 | E6: =IF(J6,"Tiesa","Netiesa") -> Tiesa | G6: R31 | H6: From 1 January 2018 each j-th budget attributable to local government sector, planned appropriations of which exceeds 0.3 % of GDP in the preceding year at current prices, and NHIF budget must be planned, approved, amended and implemented to be in surplus or balanced when judged by its structural balance indicator calculated on accrual basis | I6: t ≥ 2018 | J6: =IF((J20)>=2018,TRUE,FALSE) -> TRUE
D7: SBj(t) ≥ 0, ꓯj | E7: =IF('4. Municipalities'!O65=0,"Visų savivaldybių (Vilniaus, Kauno ir Klaipėdos miestų) biudžeto struktūriniai balanso rodikliai buvo pertekliniai","Kai kurios savivaldybės, kurių asignavimai viršija 0,3 proc. BVP, nesilaikė fiskalinės taisyklės") -> Visų savivaldybių (Vilniaus, Kauno ir Klaipėdos miestų) biudžeto struktūriniai balanso rodikliai buvo pertekliniai | F7: =IF('4. Municipalities'!P65=0,"Visų savivaldybių (Vilniaus, Kauno ir Klaipėdos miestų) biudžeto struktūriniai balanso rodikliai buvo pertekliniai","Kai kurios savivaldybės, kurių asignavimai viršija 0,3 proc. BVP, nesilaikė fiskalinės taisyklės") -> Visų savivaldybių (Vilniaus, Kauno ir Klaipėdos miestų) biudžeto struktūriniai balanso rodikliai buvo pertekliniai | I7: SBj(t) ≥ 0, ꓯj | J7: =IF(J6=TRUE,IF('4. Municipalities'!Q65=0,"All local governments (Vilnius, Kaunas, Klaipėda) follow fiscal rule",CONCATENATE("Local governments: ",'4. Municipalities'!Q67, ", do not follow fiscal rule")),"Currently not verified, since no data on local governments appropr. of which exceed 0.3% of GDP, planned appropr. and revenues") -> All local governments (Vilnius, Kaunas, Klaipėda) follow fiscal rule | K7: =IF(J6=TRUE,IF('4. Municipalities'!P65=0,"All local governments (Vilnius, Kaunas, Klaipėda) follow fiscal rule",CONCATENATE("Local governments: ",'4. Municipalities'!P65=0, "- do not follow fiscal rule")),"Currently not verified, since no data on local governments appropr. of which exceed 0.3% of GDP, planned appropr. and revenues") -> All local governments (Vilnius, Kaunas, Klaipėda) follow fiscal rule
C8: Taisyklė savivaldybių (j) asignavimams, kurie viršija 0,3 proc. BVP | E8: =IF('4. Municipalities'!O65=0,"Galioja","Negalioja") -> Galioja | F8: =IF('4. Municipalities'!P55=0,"Galioja","Negalioja") -> Galioja | H8: Rule for local governments (j) appropriations of which exceed 0.3 % of GDP | J8: =IF('4. Municipalities'!O65=0,"Valid","Invalid") -> Valid | K8: =IF('4. Municipalities'!P55=0,"Valid","Invalid") -> Valid
B9: T4 | C9: Nuo 2016 m. sausio 1 d. Lietuvos Respublikos atitinkamų metų VSDF biudžetas planuojamas, tvirtinamas, keičiamas ir vykdomas taip, kad jo struktūrinis deficitas, apskaičiuotas kaupiamuoju principu, galėtų didėti t metais, kuriems pagal Vyriausybės arba jos įgaliotos institucijos viešai paskelbtą ekonominės raidos scenarijų, dėl kurio tvirtinimo kontrolės institucija paskelbė savo išvadą, numatomas neigiamas produkcijos atotrūkis nuo potencialo | D9: t > 2016 | E9: =IF(J9,"Tiesa","Netiesa") -> Tiesa | G9: R3 | H9: From 1 January 2016 budget of the SSIF of the Republic of Lithuania for a year t shall be planned, approved, amended and implemented in such a way that its structural deficit calculated on accrual basis could increase only in the year when a negative output gap is projected according to the economic development scenario which is made public by the Government of the Republic of Lithuania or its authorised institutions and in regard of which the monitoring authority published its conclusion | I9: t > 2016 | J9: =IF(E20>2016,TRUE,FALSE) -> TRUE
D10: AP(t) < 0 | E10: =IF(J10,"Tiesa","Netiesa") -> Netiesa | F10: =IF(K10,"Tiesa","Netiesa") -> Netiesa | I10: OG(t) < 0 | J10: =IF(J21+eps<0,TRUE,FALSE) -> FALSE | K10: =IF(K21+eps<0,TRUE,FALSE) -> FALSE
E11: =CONCATENATE(TEXT(ROUND(J21,1),"0,0;–0,0"),IF(J21<0," < "," ≥ "),FIXED(0,1)) -> 0,3 ≥ 0.0 | F11: =CONCATENATE(TEXT(ROUND(K21,1),"0,0;–0,0"),IF(K21<0," < "," ≥ "),FIXED(0,1)) -> 0,2 ≥ 0.0 | J11: =CONCATENATE(TEXT(ROUND(J21,1),"0.0;–0.0"),IF(J21<0," < "," ≥ "),FIXED(0,1)) -> 2.9 ≥ 0.0 | K11: =CONCATENATE(TEXT(ROUND(K21,1),"0.0;–0.0"),IF(K21<0," < "," ≥ "),FIXED(0,1)) -> 1.8 ≥ 0.0
D12: AP(t) ≥ 0 ir SBVSDF(t) ≥ SBVSDF(t–1) | E12: =IF(J12,"Tiesa","Netiesa") -> Tiesa | F12: =IF(K12,"Tiesa","Netiesa") -> Tiesa | I12: OG(t) ≥ 0 and SBSSIF(t) ≥ SBSSIF(t–1) | J12: =IF((J21>=0)*(J22>=J23),TRUE,FALSE) -> TRUE | K12: =IF((K21>=0)*(K22+eps>=K23),TRUE,FALSE) -> TRUE
E13: =CONCATENATE(TEXT(ROUND(E21,1),"0,0;–0,0"),IF(J12," ≥ "," < "),FIXED(0,1), " ir ", TEXT(ROUND(E22,1),"0,0;–0,0"),IF(E22>=E23," ≥ "," < "), TEXT(ROUND(E23,1),"0,0;–0,0")) -> 0,3 ≥ 0.0 ir 0,8 ≥ 0,0 | F13: =CONCATENATE(TEXT(ROUND(F21,1),"0,0;–0,0"),IF(K12," ≥ "," < "),FIXED(0,1), " ir ", TEXT(ROUND(F22,1),"0,0;–0,0"),IF(F22+eps>=F23," ≥ "," < "), TEXT(ROUND(F23,1),"0,0;–0,0")) -> 0,2 ≥ 0.0 ir 0,9 ≥ 0,0 | J13: =CONCATENATE(TEXT(ROUND(J21,1),"0.0;–0.0"),IF(J12," ≥ "," < "),FIXED(0,1), " and ", TEXT(ROUND(J22,1),"0.0;–0.0"),IF(J22>=J23," ≥ "," < "), TEXT(ROUND(J23,1),"0.0;–0.0")) -> 2.9 ≥ 0.0 and 8.4 ≥ 0.0 | K13: =CONCATENATE(TEXT(ROUND(K21,1),"0.0;–0.0"),IF(K12," ≥ "," < "),FIXED(0,1), " and ", TEXT(ROUND(K22,1),"0.0;–0.0"),IF(K22+eps>=K23," ≥ "," < "), TEXT(ROUND(K23,1),"0.0;–0.0")) -> 1.8 ≥ 0.0 and 8.5 ≥ 0.2
C14: Taisyklė VSDF struktūriniam biudžetui | E14: =IF(OR(J10,J12),"Galioja","Negalioja") -> Galioja | F14: =IF(OR(K10,K12),"Galioja","Negalioja") -> Galioja | H14: Rule for SSIF structural budget | J14: =IF(OR(J10:J12),"Valid","Invalid") -> Valid | K14: =IF(OR(K10:K12),"Valid","Invalid") -> Valid
B15: T5 | C15: Nuo 2016 m. sausio 1 d. kiekvienas j-asis vietos valdžios sektoriui priskiriamas biudžetas, kurio asignavimai neviršija 0,3 procento praėjusių metų BVP to meto kainomis, turi būti planuojamas, tvirtinamas, keičiamas ir vykdomas taip, kad to biudžeto asignavimai neviršytų jo pajamų, išskyrus metus, kuriais pagal Vyriausybės arba jos įgaliotos institucijos viešai paskelbtą ekonominės raidos scenarijų, dėl kurio tvirtinimo kontrolės institucija paskelbė savo išvadą, numatomas neigiamas produkcijos atotrūkis nuo potencialo. Pastaruoju atveju asignavimai negali viršyti pajamų daugiau kaip 1,5 procento | D15: t > 2016 | E15: =IF(J15,"Tiesa","Netiesa") -> Tiesa | G15: R4 | H15: From 1 January 2016 each j-th budget attributable to local government sector, planned appropriations of which does not exceed 0.3 % of GDP in the preceding year at current prices, shall be planned, approved, amended and implemented in such a way that the appropriations of the budget would not exceed its revenue, with the exception of the year when a negative output gap is projected according to the economic development scenario which is made public by the Government or its authorised institution and in regard to which the monitoring authority published its conclusion. In the latter case, the appropriations may not exceed revenue by more than 1.5 % | I15: t > 2016 | J15: =IF(E20>2016,TRUE,FALSE) -> TRUE
D16: AP(t) ≥ 0 ir VIj(t)/VPj(t) ≤ 1 | E16: =IF('4. Municipalities'!O66=0,"Visų savivaldybių biudžetai buvo pertekliniai","Kai kurios savivaldybės nesilaikė fiskalinės taisyklės") -> Visų savivaldybių biudžetai buvo pertekliniai | F16: =IF('4. Municipalities'!P66=0,"Visų savivaldybių biudžetai buvo pertekliniai","Kai kurios savivaldybės nesilaikė fiskalinės taisyklės") -> Visų savivaldybių biudžetai buvo pertekliniai | I16: OG(t) ≥ 0 and TEj(t)/TRj(t) ≤ 1 | J16: =IF(J15=TRUE,IF('4. Municipalities'!O66=0,"All local governments appropriately planned budgets",CONCATENATE("Local governments: ",'4. Municipalities'!O68, ", do not follow fiscal rule")),"Not applicable yet") -> All local governments appropriately planned budgets | K16: =IF(J15=TRUE,IF('4. Municipalities'!P66=0,"All local governments appropriately planned budgets",CONCATENATE("Local governments: ",'4. Municipalities'!P68, "- do not follow fiscal rule")),"Not applicable yet") -> All local governments appropriately planned budgets
D17: AP(t) < 0 ir VIj(t)/VPj(t) ≤ 1,015 | E17: Netaikoma | F17: Netaikoma
C18: Taisyklė savivaldybių (j) asignavimams, kurie neviršija 0,3 proc. BVP | E18: =IF('4. Municipalities'!O66=0,"Galioja","Negalioja") -> Galioja | F18: =IF('4. Municipalities'!P66=0,"Galioja","Negalioja") -> Galioja | H18: Rule for local governments (j) appropriations of which does not exceed 0.3 % of GDP | J18: =IF('4. Municipalities'!O66=0,"Valid","Invalid") -> Valid | K18: =IF('4. Municipalities'!P66=0,"Valid","Invalid") -> Valid
C19: Šaltinis: KĮ 4 straipsnis | H19: Source: CL Article 4
D20: t = | E20: 2018 | I20: t = | J20: =E20 -> 2018
D21: AP(t) = | E21: ='2. Macro'!N20 -> 2.923526894 | F21: ='2. Macro'!N19 -> 1.772171245 | I21: OG(t) = | J21: =E21 -> 2.923526894 | K21: =F21 -> 1.772171245
D22: SBVSDF(t) = | E22: ='3. GGbudget'!H20 -> 8.361698112 | F22: ='3. GGbudget'!L20 -> 8.477985032 | I22: SBSSIF(t) = | J22: =E22 -> 8.361698112 | K22: =F22 -> 8.477985032
D23: SBVSDF(t–1) = | E23: ='3. GGbudget'!F20 -> 0.04216299543 | F23: ='3. GGbudget'!J20 -> 0.1939761831 | I23: SBSSIF(t–1) = | J23: =E23 -> 0.04216299543 | K23: =F23 -> 0.1939761831
D24: Šaltiniai: | I24: Sources:
D25: Finansų ministerija | E25: FM | I25: Ministry of Finance | J25: MoF
D26: Fiskalinė institucija | E26: IFI | I26: Independent Fiscal Institution | J26: IFI
